{"text_format":"1","workbook":"xlsx","n_sheets":10,"sheets":["Wniosek","ArkSlownie","Slownik","Dane","JER-ZACH-u","JER-MAZ-u","rodzaj dział. wg PKD","MSP","ArkuszSłownie","Obrazki"],"not_rendered":{"charts":0,"images":25,"macros":1,"external_links":0,"defined_names":4,"comments":1,"pivot_tables":0},"unopened":[],"bounds":{"document_bytes":16777216,"sheet_cells":100000,"rows_first":2000,"rows_last":500,"rows_between":2000,"halvings":0,"cell_chars":16384,"cell_head_chars":4096},"cells_cut":0,"cells_raw":0,"read":"whole","date_system":"1900"}

{"sheet":"Wniosek","index":0,"n_rows":234,"n_cols":16384,"rows_kept":234,"cut":false,"hidden":false,"merged":[[32,3,32,9],[42,3,42,4],[17,6,17,8],[21,2,22,2],[15,2,15,3],[17,2,17,3],[17,4,17,5],[70,7,70,9],[71,7,71,9],[70,2,70,3],[71,4,71,6],[69,4,69,6],[70,4,70,6],[62,2,62,9],[54,3,54,5],[50,2,50,9],[45,3,45,9],[68,4,68,6],[60,2,60,9],[16,4,16,5],[34,3,34,9],[18,2,18,3],[18,4,18,9],[21,6,22,6],[19,4,19,5],[19,7,19,9],[44,3,44,4],[44,5,44,6],[134,2,134,9],[158,9,159,9],[131,7,131,8],[117,2,117,8],[121,3,121,8],[20,4,20,9],[26,3,26,9],[68,2,68,3],[225,2,225,9],[124,2,124,8],[126,7,127,8],[125,2,125,9],[126,5,127,6],[126,9,127,9],[122,3,122,8],[128,7,128,8],[223,2,223,9],[130,5,130,6],[131,5,131,6],[44,7,44,9],[48,2,48,9],[23,6,24,9],[25,3,25,5],[27,2,27,5],[188,2,188,4],[188,5,188,6],[188,7,188,8],[187,2,187,4],[182,2,182,9],[33,3,33,9],[19,2,19,3],[69,7,69,9],[162,7,162,8],[174,5,175,6],[140,2,140,8],[170,5,170,6],[167,7,167,8],[158,3,159,4],[155,3,155,4],[130,7,130,8],[27,6,27,9],[129,2,129,4],[129,5,129,6],[129,7,129,8],[158,5,159,6],[139,7,139,8],[151,3,151,4],[167,5,167,6],[179,2,179,4],[179,5,179,6],[179,7,179,8],[187,5,187,6],[187,7,187,8],[185,2,185,4],[185,5,185,6],[186,2,186,4],[186,5,186,6],[186,7,186,8],[183,2,184,4],[181,2,181,8],[160,7,160,8],[172,2,172,8],[165,2,166,2],[142,2,142,8],[196,2,196,4],[203,2,203,3],[203,4,203,8],[204,2,204,3],[204,4,204,8],[171,5,171,6],[167,3,167,4],[185,7,185,8],[178,7,178,8],[169,7,169,8],[173,2,173,9],[171,7,171,8],[165,9,166,9],[165,3,166,4],[165,5,166,6],[178,2,178,4],[176,2,176,4],[160,3,160,4],[160,5,160,6],[189,7,189,8],[200,2,200,3],[200,4,200,8],[189,2,189,4],[195,5,195,6],[197,2,197,8],[199,2,199,9],[192,5,193,6],[192,9,193,9],[198,2,198,9],[191,2,191,9],[190,2,190,8],[195,7,195,8],[196,5,196,6],[196,7,196,8],[192,7,193,8],[192,2,193,4],[194,2,194,4],[195,2,195,4],[189,5,189,6],[221,2,221,7],[210,2,210,3],[210,4,210,8],[206,4,206,9],[201,2,201,3],[201,4,201,8],[205,2,205,3],[205,4,205,8],[202,2,202,3],[202,4,202,8],[208,2,208,3],[208,4,208,8],[207,2,207,3],[207,4,207,8],[209,2,209,3],[209,4,209,8],[211,2,211,8],[213,2,213,8],[212,2,212,8],[206,2,206,3],[230,7,230,9],[231,7,231,9],[227,2,227,5],[227,6,227,9],[228,2,228,5],[228,6,228,9],[214,2,214,9],[229,2,229,9],[215,2,215,9],[216,2,216,7],[216,8,216,9],[217,2,217,7],[217,8,217,9],[218,2,218,7],[218,8,218,9],[219,2,219,7],[219,8,219,9],[220,2,220,7],[220,8,220,9],[221,8,221,9],[222,2,222,7],[222,8,222,9],[230,2,230,6],[224,2,224,9],[141,2,141,9],[135,9,136,9],[126,2,127,4],[132,2,132,4],[137,2,137,6],[138,2,138,6],[158,2,159,2],[158,7,159,8],[155,7,155,8],[154,7,154,8],[149,2,150,2],[156,2,156,8],[157,2,157,9],[149,7,150,8],[135,2,136,6],[137,7,137,8],[139,2,139,6],[155,5,155,6],[143,2,143,8],[151,7,151,8],[135,7,136,8],[146,2,146,8],[147,2,147,9],[149,5,150,6],[128,2,128,4],[130,2,130,4],[132,5,132,6],[123,3,123,8],[91,3,91,6],[133,2,133,8],[111,2,111,5],[131,2,131,4],[128,5,128,6],[132,7,132,8],[107,2,107,7],[108,2,108,7],[115,2,115,6],[116,2,116,6],[105,2,105,8],[92,7,92,9],[118,2,118,9],[14,2,14,3],[1,3,1,9],[12,2,12,9],[2,3,2,4],[3,3,3,4],[4,3,4,4],[7,3,7,4],[8,3,8,4],[7,5,7,6],[7,7,7,9],[10,3,10,4],[8,7,8,9],[8,5,8,6],[10,7,10,9],[9,3,9,9],[6,2,6,9],[11,2,11,9],[10,5,10,6],[14,4,14,9],[16,2,16,3],[42,7,42,9],[77,2,77,9],[79,7,79,9],[13,2,13,3],[43,5,43,6],[15,4,15,5],[15,6,15,8],[28,3,28,9],[29,3,29,9],[30,3,30,9],[31,2,31,9],[20,2,20,3],[25,6,25,7],[25,8,25,9],[35,3,35,4],[35,6,35,9],[36,3,36,9],[37,7,37,9],[43,7,43,9],[38,3,38,9],[41,3,41,9],[13,4,13,9],[42,5,42,6],[183,9,184,9],[183,7,184,8],[183,5,184,6],[72,2,72,9],[69,2,69,3],[80,4,80,6],[80,2,80,3],[83,2,83,3],[81,2,81,3],[81,4,81,6],[82,2,82,9],[73,2,73,3],[74,2,74,3],[75,2,75,3],[83,4,83,9],[78,7,78,9],[149,3,150,4],[177,2,177,4],[79,4,79,6],[78,2,78,3],[78,4,78,6],[79,2,79,3],[93,2,93,9],[88,2,88,9],[232,2,232,9],[46,2,46,3],[53,6,53,7],[53,8,53,9],[53,3,53,5],[58,3,58,9],[152,3,152,4],[152,5,152,6],[152,7,152,8],[168,3,168,4],[168,5,168,6],[168,7,168,8],[169,3,169,4],[106,2,106,9],[76,2,76,3],[59,2,59,9],[71,2,71,3],[46,4,46,6],[46,8,46,9],[161,5,161,6],[162,5,162,6],[170,3,170,4],[165,7,166,8],[104,5,104,7],[37,3,37,4],[39,5,39,6],[40,2,40,9],[43,3,43,4],[37,5,37,6],[154,5,154,6],[153,5,153,6],[153,3,153,4],[153,7,153,8],[103,5,103,7],[103,3,103,4],[85,4,85,9],[101,2,101,8],[94,2,94,9],[90,3,90,6],[96,2,96,9],[97,2,97,9],[149,9,150,9],[144,2,144,8],[151,5,151,6],[99,3,99,6],[112,2,112,5],[87,2,87,9],[104,3,104,4],[39,3,39,4],[49,2,49,9],[73,7,73,9],[74,4,74,6],[74,7,74,9],[76,4,76,6],[73,4,73,6],[75,7,75,9],[75,4,75,6],[67,2,67,9],[54,8,54,9],[54,6,54,7],[66,2,66,9],[56,3,56,5],[55,3,55,5],[57,3,57,5],[63,2,65,9],[61,2,61,9],[39,7,39,9],[52,2,52,9],[68,7,68,9],[51,2,51,9],[76,7,76,9],[154,3,154,4],[119,2,119,9],[109,2,109,8],[113,2,113,8],[120,3,120,8],[91,7,91,9],[84,2,84,3],[84,4,84,9],[86,2,86,9],[89,3,89,6],[89,7,89,9],[102,2,102,9],[90,7,90,9],[100,3,100,6],[110,2,110,9],[95,2,95,9],[98,2,98,9],[92,3,92,6],[85,2,85,3],[81,7,81,9],[80,7,80,9],[114,2,114,9],[138,7,138,8],[226,2,226,9],[145,2,145,8],[148,2,148,9],[177,5,177,6],[177,7,177,8],[180,7,180,8],[162,3,162,4],[161,3,161,4],[174,7,175,8],[174,9,175,9],[180,5,180,6],[170,7,170,8],[169,5,169,6],[174,2,175,4],[180,2,180,4],[176,5,176,6],[176,7,176,8],[164,2,164,9],[171,3,171,4],[178,5,178,6],[163,2,163,8],[161,7,161,8],[194,5,194,6],[194,7,194,8]]}
[null,"ver. 2.17"]
[]
[null,null,"Wypełnia biuro Fundacji:"]
[null,null,"Biuro Terenowe:",null,null,null,"priorytety :"]
[null,null,"Imię i nazwisko oficera poż.:"]
[]
[null,null,"WNIOSEK O PRZYZNANIE POŻYCZKI - BIZNESPLAN"]
[null,null,"Wnioskowana kwota",null,null,"Słownie",null,{"$f":"ArkuszSłownie!A10","v":"zero i 00/100"}]
[null,null,"Okres kredytowania w miesiącach",null,null,"Wnioskowany okres karencji"]
[null,null,"Cel pożyczki"]
[null,null,"Miejsce inwestycji wg powiatu",null,null,"wg gminy"]
[null,null,"I.  Informacje ogólne: "]
[null,null,"Wnioskodawca - dane o firmie"]
[null,null,"Nazwa firmy zgodnie z CEDIG/KRS"]
[null,null,"Adres firmy\nulica nr budynku nr lokalu, kod, miasto"]
[null,null,"Data rozpoczęcia działalności \nRRRR-MM-DD",null,null,null,"Numer KRS ( w przypadku spółek)"]
[null,null,"Numer Regon",null,null,null,"Numer NIP"]
[null,null,"Kod PKD (główny)",null,null,null,"Kod PKD którego dotyczy wniosek "]
[null,null,"Wykonywana działalność gospodarcza"]
[null,null,"Forma prawna:"]
[null,null,"Forma rozliczeń z Urzędem Skarbowym:"]
[null,null,"Liczba zatrudnionych  pracowników (wg EPC)","Rok (n-2)","Rok poprzedni (n-1)","Rok bieżący (n)","Planowana liczba zatrudnionych ( obecnie zatrudnieni + planowane zatrudnienie) według EPC:","kobiety","mężczyźni","w tym z obszarów wiejskich"]
[]
[null,null,"Osiągnięty roczny obrót netto ze sprzedaży towarów, wyrobów usług i operacji finansowych"]
[null,null,"Suma aktywów bilansu sporządzonego na koniec roku(dla przedsiębiorstw na księgach rachunkowych)"]
[null,null,"Typ przedsiębiorstwa"]
[null,null,"Status przedsiębiorstwa"]
[null,null,"Planowana liczba nowych miejsc pracy EPC utworzonych w wyniku otrzymania pożyczki"]
[null,null,"Numer rachunku bankowego"]
[null,null,"Prowadzonego pod nazwą Przedsiębiorstwa",{"$f":"E14","v":0}]
[null,null,"Nazwa banku"]
[null,null,"Właściciel  / Wspólnik / Reprezentant firmy"]
[null,null,"Nazwisko"]
[null,null,"Imię"]
[null,null,"Stanowisko w firmie"]
[null,null,"Seria i nr dowodu",null,null,"Wydany przez"]
[null,null,"Ważny do:\n (wpisać w formacie RRRR-MM-DD)"]
[null,null,"Nr PESEL",null,null,"Nr NIP"]
[null,null,"Adres zamieszkania\n(ulica nr budynku nr lokalu, kod, miasto)"]
[null,null,"Kod pocztowy",null,null,"Miejscowość"]
[null,null,"Miejsce zarejestrowania \ndziałalności gospodarczej"]
[null,null,"Adres korespondencyjny\n(ulica nr budynku nr lokalu, kod, miasto)"]
[null,null,"Kod pocztowy",null,null,"Miejscowość"]
[null,null,"Telefon kontaktowy 1:",null,null,"Telefon kontaktowy 2:"]
[null,null,"Adres e-mail",null,null,"Strona www"]
[null,null,"Wykształcenie, kwalifikacje i uprawnienia"]
[null,null,"Czy Wnioskodawca korzystał z pożyczek udzielanych przez FDPA?",null,null,null,null,"Liczba spłaconych pożyczek:"]
[]
[null,null,"II. Informacje na temat realizowanego przedsięwzięcia"]
[null,null,"Krótki opis prowadzonej działalności:"]
[]
[null,null,"Opis planowanego przedsięwzięcia/inwestycji - BIZNESPLAN"]
[null,null,"Zgodnie z załącznikiem nr 1 do wniosku pożyczkowego."]
[null,null,"Całkowity koszt przedsięwzięcia (zł)",null,null,null,"Wkład własny (zł)"]
[null,null,"Forma wkładu własnego:",null,null,null,"Krótki opis innej formy wkładu własnego:"]
[null,null,"Wartość komponentu inwestycyjnego przedsiewziecięcia"]
[null,null,"Wartość komponentu obrotowego przedsięwziecia"]
[null,null,"Wartość komponentu zakupu gruntu"]
[null,null,"Numer konta pożyczkobiorcy do zwrotu ewentualnej nadpłaty",{"$f":"+D29","v":0}]
[null,null,"Dane dotyczące produktów/usług Przesiębiorstwa"]
[null,null,"Opis produktu lub usługi prosimy podać główne cechy i zalety. Czy są to produkty (usługi) już istniejące? Czym produkt wyróżnia się spośród produktów dostępnych na rynku i jaka jest jego przewaga nad produktami konkurencyjnymi"]
[]
[null,null,"Na jakiej podstawie planowana jest wielkość produkcji/sprzedaży"]
[]
[]
[]
[null,null,"Ocena rynku"]
[null,null,"Główni odbiorcy"]
[null,null,"Nazwa/lokalizacja",null,"udział w rynku",null,null,"termin zapłaty (w dniach)"]
[]
[]
[]
[null,null,"Główni dostawcy surowców, towarów "]
[null,null,"Nazwa dostawcy",null,"udział w dostawach",null,null,"termin płatności (w dniach)"]
[]
[]
[]
[null,null,"Posiadane umowy z dostawcami, odbiorcami, podwykonawcami zamówienia"]
[null,null,"Nazwa firmy",null,"wartość zlecenia/ kontraktu",null,null,"okres objęty umową"]
[]
[]
[]
[null,null,"Zasięg rynku (dzielnica, miasto, region, kraj) "]
[null,null,"początkowo",null,"docelowo"]
[]
[]
[null,null,"Sezonowość popytu. Jak zamierzasz przeciwdziałać jego negatywnym skutkom?"]
[]
[null,null,"Podaj  głównych konkurentów:"]
[null,null,"Nazwa ","Silne strony",null,null,null,"Słabe strony"]
[]
[]
[]
[null,null,"Możliwości zmiany profilu produkcji i dostosowanie się do sytuacji rynkowej w przypadku trudności ze zbytem:"]
[]
[]
[null,null,"III. Informacje do bilansu - Majątek Firmy"]
[null,null,"Opis środków trwałych"]
[null,null,"Nieruchomości - grunty"]
[null,null,"Grunty - nr księgi wieczystej","Lokalizacja",null,null,null,"Powierzchnia (ha)","Ustanowiona hipoteka","Aktualna wartość"]
[]
[null,null,"Grunty OGÓŁEM:",null,null,null,null,null,null,0,null,null,null,null,null,null,null,null,null,null,null,null,null,null,null,null,null,null,null,null,null,null,null,null,null,null,null,null,null,null,null,null,null,null,null,null,null,null,null,null,null,null,null,null,null,null,null,null,null,null,null,null,null,null,null,null,null,null,null,null,null,null,null,null,null,null,null,null,null,null,null,null,null,null,null,null,null,null,null,null,null,null,null,null,null,null,null,null,null,null,null,null,null,null,null,null,null,null,null,null,null,null,null,null,null,null,null,null,null,null,null,null,null,null,null,null,null,null,null,null,null,null,null,null,null,null,null,null,null,null,null,null,null,null,null,null,null,null,null,null,null,null,null,null,null,null,null,null,null,null,null,null,null,null,null,null,null,null,null,null,null,null,null,null,null,null,null,null,null,null,null,null,null,null,null,null,null,null,null,null,null,null,null,null,null,null,null,null,null,null,null,null,null,null,null,null,null,null,null,null,null,null,null,null,null,null,null,null,null,null,null,null,null,null,null,null,null,null,null,null,null,null,null,null,null,null,null,null,null,null,null,null,null,null,null,null,null,null,null,null,null,null,null,null,null,null,null,null,null,null,null,null,null,null,null,null,null,null,null,null,null,null,null,null,null,null,null,null,null,null,null,null,null,null,null,null,null,null,null,null,null,null,null,null,null,null,null,null,null,null,null,null,null,null,null,null,null,null,null,null,null,null,null,null,null,null,null,null,null,null,null,null,null,null,null,null,null,null,null,null,null,null,null,null,null,null,null,null,null,null,null,null,null,null,null,null,null,null,null,null,null,null,null,null,null,null,null,null,null,null,null,null,null,null,null,null,null,null,null,null,null,null,null,null,null,null,null,null,null,null,null,null,null,null,null,null,null,null,null,null,null,null,null,null,null,null,null,null,null,null,null,null,null,null,null,null,null,null,null,null,null,null,null,null,null,null,null,null,null,null,null,null,null,null,null,null,null,null,null,null,null,null,null,null,null,null,null,null,null,null,null,null,null,null,null,null,null,null,null,null,null,null,null,null,null,null,null,null,null,null,null,null,null,null,null,null,null,null,null,null,null,null,null,null,null,null,null,null,null,null,null,null,null,null,null,null,null,null,null,null,null,null,null,null,null,null,null,null,null,null,null,null,null,null,null,null,null,null,null,null,null,null,null,null,null,null,null,null,null,null,null,null,null,null,null,null,null,null,null,null,null,null,null,null,null,null,null,null,null,null,null,null,null,null,null,null,null,null,null,null,null,null,null,null,null,null,null,null,null,null,null,null,null,null,null,null,null,null,null,null,null,null,null,null,null,null,null,null,null,null,null,null,null,null,null,null,null,null,null,null,null,null,null,null,null,null,null,null,null,null,null,null,null,null,null,null,null,null,null,null,null,null,null,null,null,null,null,null,null,null,null,null,null,null,null,null,null,null,null,null,null,null,null,null,null,null,null,null,null,null,null,null,null,null,null,null,null,null,null,null,null,null,null,null,null,null,null,null,null,null,null,null,null,null,null,null,null,null,null,null,null,null,null,null,null,null,null,null,null,null,null,null,null,null,null,null,null,null,null,null,null,null,null,null,null,null,null,null,null,null,null,null,null,null,null,null,null,null,null,null,null,null,null,null,null,null,null,null,null,null,null,null,null,null,null,null,null,null,null,null,null,null,null,null,null,null,null,null,null,null,null,null,null,null,null,null,null,null,null,null,null,null,null,null,null,null,null,null,null,null,null,null,null,null,null,null,null,null,null,null,null,null,null,null,null,null,null,null,null,null,null,null,null,null,null,null,null,null,null,null,null,null,null,null,null,null,null,null,null,null,null,null,null,null,null,null,null,null,null,null,null,null,null,null,null,null,null,null,null,null,null,null,null,null,null,null,null,null,null,null,null,null,null,null,null,null,null,null,null,null,null,null,null,null,null,null,null,null,null,null,null,null,null,null,null,null,null,null,null,null,null,null,null,null,null,null,null,null,null,null,null,null,null,null,null,null,null,null,null,null,null,null,null,null,null,null,null,null,null,null,null,null,null,null,null,null,null,null,null,null,null,null,null,null,null,null,null,null,null,null,null,null,null,null,null,null,null,null,null,null,null,null,null,null,null,null,null,null,null,null,null,null,null,null,null,null,null,null,null,null,null,null,null,null,null,null,null,null,null,null,null,null,null,null,null,null,null,null,null,null,null,null,null,null,null,null,null,null,null,null,null,null,null,null,null,null,null,null,null,null,null,null,null,null,null,null,null,null,null,null,null,null,null,null,null,null,null,null,null,null,null,null,null,null,null,null,null,null,null,null,null,null,null,null,null,null,null,null,null,null,null,null,null,null,null,null,null,null,null,null,null,null,null,null,null,null,null,null,null,null,null,null,null,null,null,null,null,null,null,null,null,null,null,null,null,null,null,null,null,null,null,null,null,null,null,null,null,null,null,null,null,null,null,null,null,null,null,null,null,null,null,null,null,null,null,null,null,null,null,null,null,null,null,null,null,null,null,null,null,null,null,null,null,null,null,null,null,null,null,null,null,null,null,null,null,null,null,null,null,null,null,null,null,null,null,null,null,null,null,null,null,null,null,null,null,null,null,null,null,null,null,null,null,null,null,null,null,null,null,null,null,null,null,null,null,null,null,null,null,null,null,null,null,null,null,null,null,null,null,null,null,null,null,null,null,null,null,null,null,null,null,null,null,null,null,null,null,null,null,null,null,null,null,null,null,null,null,null,null,null,null,null,null,null,null,null,null,null,null,null,null,null,null,null,null,null,null,null,null,null,null,null,null,null,null,null,null,null,null,null,null,null,null,null,null,null,null,null,null,null,null,null,null,null,null,null,null,null,null,null,null,null,null,null,null,null,null,null,null,null,null,null,null,null,null,null,null,null,null,null,null,null,null,null,null,null,null,null,null,null,null,null,null,null,null,null,null,null,null,null,null,null,null,null,null,null,null,null,null,null,null,null,null,null,null,null,null,null,null,null,null,null,null,null,null,null,null,null,null,null,null,null,null,null,null,null,null,null,null,null,null,null,null,null,null,null,null,null,null,null,null,null,null,null,null,null,null,null,null,null,null,null,null,null,null,null,null,null,null,null,null,null,null,null,null,null,null,null,null,null,null,null,null,null,null,null,null,null,null,null,null,null,null,null,null,null,null,null,null,null,null,null,null,null,null,null,null,null,null,null,null,null,null,null,null,null,null,null,null,null,null,null,null,null,null,null,null,null,null,null,null,null,null,null,null,null,null,null,null,null,null,null,null,null,null,null,null,null,null,null,null,null,null,null,null,null,null,null,null,null,null,null,null,null,null,null,null,null,null,null,null,null,null,null,null,null,null,null,null,null,null,null,null,null,null,null,null,null,null,null,null,null,null,null,null,null,null,null,null,null,null,null,null,null,null,null,null,null,null,null,null,null,null,null,null,null,null,null,null,null,null,null,null,null,null,null,null,null,null,null,null,null,null,null,null,null,null,null,null,null,null,null,null,null,null,null,null,null,null,null,null,null,null,null,null,null,null,null,null,null,null,null,null,null,null,null,null,null,null,null,null,null,null,null,null,null,null,null,null,null,null,null,null,null,null,null,null,null,null,null,null,null,null,null,null,null,null,null,null,null,null,null,null,null,null,null,null,null,null,null,null,null,null,null,null,null,null,null,null,null,null,null,null,null,null,null,null,null,null,null,null,null,null,null,null,null,null,null,null,null,null,null,null,null,null,null,null,null,null,null,null,null,null,null,null,null,null,null,null,null,null,null,null,null,null,null,null,null,null,null,null,null,null,null,null,null,null,null,null,null,null,null,null,null,null,null,null,null,null,null,null,null,null,null,null,null,null,null,null,null,null,null,null,null,null,null,null,null,null,null,null,null,null,null,null,null,null,null,null,null,null,null,null,null,null,null,null,null,null,null,null,null,null,null,null,null,null,null,null,null,null,null,null,null,null,null,null,null,null,null,null,null,null,null,null,null,null,null,null,null,null,null,null,null,null,null,null,null,null,null,null,null,null,null,null,null,null,null,null,null,null,null,null,null,null,null,null,null,null,null,null,null,null,null,null,null,null,null,null,null,null,null,null,null,null,null,null,null,null,null,null,null,null,null,null,null,null,null,null,null,null,null,null,null,null,null,null,null,null,null,null,null,null,null,null,null,null,null,null,null,null,null,null,null,null,null,null,null,null,null,null,null,null,null,null,null,null,null,null,null,null,null,null,null,null,null,null,null,null,null,null,null,null,null,null,null,null,null,null,null,null,null,null,null,null,null,null,null,null,null,null,null,null,null,null,null,null,null,null,null,null,null,null,null,null,null,null,null,null,null,null,null,null,null,null,null,null,null,null,null,null,null,null,null,null,null,null,null,null,null,null,null,null,null,null,null,null,null,null,null,null,null,null,null,null,null,null,null,null,null,null,null,null,null,null,null,null,null,null,null,null,null,null,null,null,null,null,null,null,null,null,null,null,null,null,null,null,null,null,null,null,null,null,null,null,null,null,null,null,null,null,null,null,null,null,null,null,null,null,null,null,null,null,null,null,null,null,null,null,null,null,null,null,null,null,null,null,null,null,null,null,null,null,null,null,null,null,null,null,null,null,null,null,null,null,null,null,null,null,null,null,null,null,null,null,null,null,null,null,null,null,null,null,null,null,null,null,null,null,null,null,null,null,null,null,null,null,null,null,null,null,null,null,null,null,null,null,null,null,null,null,null,null,null,null,null,null,null,null,null,null,null,null,null,null,null,null,null,null,null,null,null,null,null,null,null,null,null,null,null,null,null,null,null,null,null,null,null,null,null,null,null,null,null,null,null,null,null,null,null,null,null,null,null,null,null,null,null,null,null,null,null,null,null,null,null,null,null,null,null,null,null,null,null,null,null,null,null,null,null,null,null,null,null,null,null,null,null,null,null,null,null,null,null,null,null,null,null,null,null,null,null,null,null,null,null,null,null,null,null,null,null,null,null,null,null,null,null,null,null,null,null,null,null,null,null,null,null,null,null,null,null,null,null,null,null,null,null,null,null,null,null,null,null,null,null,null,null,null,null,null,null,null,null,null,null,null,null,null,null,null,null,null,null,null,null,null,null,null,null,null,null,null,null,null,null,null,null,null,null,null,null,null,null,null,null,null,null,null,null,null,null,null,null,null,null,null,null,null,null,null,null,null,null,null,null,null,null,null,null,null,null,null,null,null,null,null,null,null,null,null,null,null,null,null,null,null,null,null,null,null,null,null,null,null,null,null,null,null,null,null,null,null,null,null,null,null,null,null,null,null,null,null,null,null,null,null,null,null,null,null,null,null,null,null,null,null,null,null,null,null,null,null,null,null,null,null,null,null,null,null,null,null,null,null,null,null,null,null,null,null,null,null,null,null,null,null,null,null,null,null,null,null,null,null,null,null,null,null,null,null,null,null,null,null,null,null,null,null,null,null,null,null,null,null,null,null,null,null,null,null,null,null,null,null,null,null,null,null,null,null,null,null,null,null,null,null,null,null,null,null,null,null,null,null,null,null,null,null,null,null,null,null,null,null,null,null,null,null,null,null,null,null,null,null,null,null,null,null,null,null,null,null,null,null,null,null,null,null,null,null,null,null,null,null,null,null,null,null,null,null,null,null,null,null,null,null,null,null,null,null,null,null,null,null,null,null,null,null,null,null,null,null,null,null,null,null,null,null,null,null,null,null,null,null,null,null,null,null,null,null,null,null,null,null,null,null,null,null,null,null,null,null,null,null,null,null,null,null,null,null,null,null,null,null,null,null,null,null,null,null,null,null,null,null,null,null,null,null,null,null,null,null,null,null,null,null,null,null,null,null,null,null,null,null,null,null,null,null,null,null,null,null,null,null,null,null,null,null,null,null,null,null,null,null,null,null,null,null,null,null,null,null,null,null,null,null,null,null,null,null,null,null,null,null,null,null,null,null,null,null,null,null,null,null,null,null,null,null,null,null,null,null,null,null,null,null,null,null,null,null,null,null,null,null,null,null,null,null,null,null,null,null,null,null,null,null,null,null,null,null,null,null,null,null,null,null,null,null,null,null,null,null,null,null,null,null,null,null,null,null,null,null,null,null,null,null,null,null,null,null,null,null,null,null,null,null,null,null,null,null,null,null,null,null,null,null,null,null,null,null,null,null,null,null,null,null,null,null,null,null,null,null,null,null,null,null,null,null,null,null,null,null,null,null,null,null,null,null,null,null,null,null,null,null,null,null,null,null,null,null,null,null,null,null,null,null,null,null,null,null,null,null,null,null,null,null,null,null,null,null,null,null,null,null,null,null,null,null,null,null,null,null,null,null,null,null,null,null,null,null,null,null,null,null,null,null,null,null,null,null,null,null,null,null,null,null,null,null,null,null,null,null,null,null,null,null,null,null,null,null,null,null,null,null,null,null,null,null,null,null,null,null,null,null,null,null,null,null,null,null,null,null,null,null,null,null,null,null,null,null,null,null,null,null,null,null,null,null,null,null,null,null,null,null,null,null,null,null,null,null,null,null,null,null,null,null,null,null,null,null,null,null,null,null,null,null,null,null,null,null,null,null,null,null,null,null,null,null,null,null,null,null,null,null,null,null,null,null,null,null,null,null,null,null,null,null,null,null,null,null,null,null,null,null,null,null,null,null,null,null,null,null,null,null,null,null,null,null,null,null,null,null,null,null,null,null,null,null,null,null,null,null,null,null,null,null,null,null,null,null,null,null,null,null,null,null,null,null,null,null,null,null,null,null,null,null,null,null,null,null,null,null,null,null,null,null,null,null,null,null,null,null,null,null,null,null,null,null,null,null,null,null,null,null,null,null,null,null,null,null,null,null,null,null,null,null,null,null,null,null,null,null,null,null,null,null,null,null,null,null,null,null,null,null,null,null,null,null,null,null,null,null,null,null,null,null,null,null,null,null,null,null,null,null,null,null,null,null,null,null,null,null,null,null,null,null,null,null,null,null,null,null,null,null,null,null,null,null,null,null,null,null,null,null,null,null,null,null,null,null,null,null,null,null,null,null,null,null,null,null,null,null,null,null,null,null,null,null,null,null,null,null,null,null,null,null,null,null,null,null,null,null,null,null,null,null,null,null,null,null,null,null,null,null,null,null,null,null,null,null,null,null,null,null,null,null,null,null,null,null,null,null,null,null,null,null,null,null,null,null,null,null,null,null,null,null,null,null,null,null,null,null,null,null,null,null,null,null,null,null,null,null,null,null,null,null,null,null,null,null,null,null,null,null,null,null,null,null,null,null,null,null,null,null,null,null,null,null,null,null,null,null,null,null,null,null,null,null,null,null,null,null,null,null,null,null,null,null,null,null,null,null,null,null,null,null,null,null,null,null,null,null,null,null,null,null,null,null,null,null,null,null,null,null,null,null,null,null,null,null,null,null,null,null,null,null,null,null,null,null,null,null,null,null,null,null,null,null,null,null,null,null,null,null,null,null,null,null,null,null,null,null,null,null,null,null,null,null,null,null,null,null,null,null,null,null,null,null,null,null,null,null,null,null,null,null,null,null,null,null,null,null,null,null,null,null,null,null,null,null,null,null,null,null,null,null,null,null,null,null,null,null,null,null,null,null,null,null,null,null,null,null,null,null,null,null,null,null,null,null,null,null,null,null,null,null,null,null,null,null,null,null,null,null,null,null,null,null,null,null,null,null,null,null,null,null,null,null,null,null,null,null,null,null,null,null,null,null,null,null,null,null,null,null,null,null,null,null,null,null,null,null,null,null,null,null,null,null,null,null,null,null,null,null,null,null,null,null,null,null,null,null,null,null,null,null,null,null,null,null,null,null,null,null,null,null,null,null,null,null,null,null,null,null,null,null,null,null,null,null,null,null,null,null,null,null,null,null,null,null,null,null,null,null,null,null,null,null,null,null,null,null,null,null,null,null,null,null,null,null,null,null,null,null,null,null,null,null,null,null,null,null,null,null,null,null,null,null,null,null,null,null,null,null,null,null,null,null,null,null,null,null,null,null,null,null,null,null,null,null,null,null,null,null,null,null,null,null,null,null,null,null,null,null,null,null,null,null,null,null,null,null,null,null,null,null,null,null,null,null,null,null,null,null,null,null,null,null,null,null,null,null,null,null,null,null,null,null,null,null,null,null,null,null,null,null,null,null,null,null,null,null,null,null,null,null,null,null,null,null,null,null,null,null,null,null,null,null,null,null,null,null,null,null,null,null,null,null,null,null,null,null,null,null,null,null,null,null,null,null,null,null,null,null,null,null,null,null,null,null,null,null,null,null,null,null,null,null,null,null,null,null,null,null,null,null,null,null,null,null,null,null,null,null,null,null,null,null,null,null,null,null,null,null,null,null,null,null,null,null,null,null,null,null,null,null,null,null,null,null,null,null,null,null,null,null,null,null,null,null,null,null,null,null,null,null,null,null,null,null,null,null,null,null,null,null,null,null,null,null,null,null,null,null,null,null,null,null,null,null,null,null,null,null,null,null,null,null,null,null,null,null,null,null,null,null,null,null,null,null,null,null,null,null,null,null,null,null,null,null,null,null,null,null,null,null,null,null,null,null,null,null,null,null,null,null,null,null,null,null,null,null,null,null,null,null,null,null,null,null,null,null,null,null,null,null,null,null,null,null,null,null,null,null,null,null,null,null,null,null,null,null,null,null,null,null,null,null,null,null,null,null,null,null,null,null,null,null,null,null,null,null,null,null,null,null,null,null,null,null,null,null,null,null,null,null,null,null,null,null,null,null,null,null,null,null,null,null,null,null,null,null,null,null,null,null,null,null,null,null,null,null,null,null,null,null,null,null,null,null,null,null,null,null,null,null,null,null,null,null,null,null,null,null,null,null,null,null,null,null,null,null,null,null,null,null,null,null,null,null,null,null,null,null,null,null,null,null,null,null,null,null,null,null,null,null,null,null,null,null,null,null,null,null,null,null,null,null,null,null,null,null,null,null,null,null,null,null,null,null,null,null,null,null,null,null,null,null,null,null,null,null,null,null,null,null,null,null,null,null,null,null,null,null,null,null,null,null,null,null,null,null,null,null,null,null,null,null,null,null,null,null,null,null,null,null,null,null,null,null,null,null,null,null,null,null,null,null,null,null,null,null,null,null,null,null,null,null,null,null,null,null,null,null,null,null,null,null,null,null,null,null,null,null,null,null,null,null,null,null,null,null,null,null,null,null,null,null,null,null,null,null,null,null,null,null,null,null,null,null,null,null,null,null,null,null,null,null,null,null,null,null,null,null,null,null,null,null,null,null,null,null,null,null,null,null,null,null,null,null,null,null,null,null,null,null,null,null,null,null,null,null,null,null,null,null,null,null,null,null,null,null,null,null,null,null,null,null,null,null,null,null,null,null,null,null,null,null,null,null,null,null,null,null,null,null,null,null,null,null,null,null,null,null,null,null,null,null,null,null,null,null,null,null,null,null,null,null,null,null,null,null,null,null,null,null,null,null,null,null,null,null,null,null,null,null,null,null,null,null,null,null,null,null,null,null,null,null,null,null,null,null,null,null,null,null,null,null,null,null,null,null,null,null,null,null,null,null,null,null,null,null,null,null,null,null,null,null,null,null,null,null,null,null,null,null,null,null,null,null,null,null,null,null,null,null,null,null,null,null,null,null,null,null,null,null,null,null,null,null,null,null,null,null,null,null,null,null,null,null,null,null,null,null,null,null,null,null,null,null,null,null,null,null,null,null,null,null,null,null,null,null,null,null,null,null,null,null,null,null,null,null,null,null,null,null,null,null,null,null,null,null,null,null,null,null,null,null,null,null,null,null,null,null,null,null,null,null,null,null,null,null,null,null,null,null,null,null,null,null,null,null,null,null,null,null,null,null,null,null,null,null,null,null,null,null,null,null,null,null,null,null,null,null,null,null,null,null,null,null,null,null,null,null,null,null,null,null,null,null,null,null,null,null,null,null,null,null,null,null,null,null,null,null,null,null,null,null,null,null,null,null,null,null,null,null,null,null,null,null,null,null,null,null,null,null,null,null,null,null,null,null,null,null,null,null,null,null,null,null,null,null,null,null,null,null,null,null,null,null,null,null,null,null,null,null,null,null,null,null,null,null,null,null,null,null,null,null,null,null,null,null,null,null,null,null,null,null,null,null,null,null,null,null,null,null,null,null,null,null,null,null,null,null,null,null,null,null,null,null,null,null,null,null,null,null,null,null,null,null,null,null,null,null,null,null,null,null,null,null,null,null,null,null,null,null,null,null,null,null,null,null,null,null,null,null,null,null,null,null,null,null,null,null,null,null,null,null,null,null,null,null,null,null,null,null,null,null,null,null,null,null,null,null,null,null,null,null,null,null,null,null,null,null,null,null,null,null,null,null,null,null,null,null,null,null,null,null,null,null,null,null,null,null,null,null,null,null,null,null,null,null,null,null,null,null,null,null,null,null,null,null,null,null,null,null,null,null,null,null,null,null,null,null,null,null,null,null,null,null,null,null,null,null,null,null,null,null,null,null,null,null,null,null,null,null,null,null,null,null,null,null,null,null,null,null,null,null,null,null,null,null,null,null,null,null,null,null,null,null,null,null,null,null,null,null,null,null,null,null,null,null,null,null,null,null,null,null,null,null,null,null,null,null,null,null,null,null,null,null,null,null,null,null,null,null,null,null,null,null,null,null,null,null,null,null,null,null,null,null,null,null,null,null,null,null,null,null,null,null,null,null,null,null,null,null,null,null,null,null,null,null,null,null,null,null,null,null,null,null,null,null,null,null,null,null,null,null,null,null,null,null,null,null,null,null,null,null,null,null,null,null,null,null,null,null,null,null,null,null,null,null,null,null,null,null,null,null,null,null,null,null,null,null,null,null,null,null,null,null,null,null,null,null,null,null,null,null,null,null,null,null,null,null,null,null,null,null,null,null,null,null,null,null,null,null,null,null,null,null,null,null,null,null,null,null,null,null,null,null,null,null,null,null,null,null,null,null,null,null,null,null,null,null,null,null,null,null,null,null,null,null,null,null,null,null,null,null,null,null,null,null,null,null,null,null,null,null,null,null,null,null,null,null,null,null,null,null,null,null,null,null,null,null,null,null,null,null,null,null,null,null,null,null,null,null,null,null,null,null,null,null,null,null,null,null,null,null,null,null,null,null,null,null,null,null,null,null,null,null,null,null,null,null,null,null,null,null,null,null,null,null,null,null,null,null,null,null,null,null,null,null,null,null,null,null,null,null,null,null,null,null,null,null,null,null,null,null,null,null,null,null,null,null,null,null,null,null,null,null,null,null,null,null,null,null,null,null,null,null,null,null,null,null,null,null,null,null,null,null,null,null,null,null,null,null,null,null,null,null,null,null,null,null,null,null,null,null,null,null,null,null,null,null,null,null,null,null,null,null,null,null,null,null,null,null,null,null,null,null,null,null,null,null,null,null,null,null,null,null,null,null,null,null,null,null,null,null,null,null,null,null,null,null,null,null,null,null,null,null,null,null,null,null,null,null,null,null,null,null,null,null,null,null,null,null,null,null,null,null,null,null,null,null,null,null,null,null,null,null,null,null,null,null,null,null,null,null,null,null,null,null,null,null,null,null,null,null,null,null,null,null,null,null,null,null,null,null,null,null,null,null,null,null,null,null,null,null,null,null,null,null,null,null,null,null,null,null,null,null,null,null,null,null,null,null,null,null,null,null,null,null,null,null,null,null,null,null,null,null,null,null,null,null,null,null,null,null,null,null,null,null,null,null,null,null,null,null,null,null,null,null,null,null,null,null,null,null,null,null,null,null,null,null,null,null,null,null,null,null,null,null,null,null,null,null,null,null,null,null,null,null,null,null,null,null,null,null,null,null,null,null,null,null,null,null,null,null,null,null,null,null,null,null,null,null,null,null,null,null,null,null,null,null,null,null,null,null,null,null,null,null,null,null,null,null,null,null,null,null,null,null,null,null,null,null,null,null,null,null,null,null,null,null,null,null,null,null,null,null,null,null,null,null,null,null,null,null,null,null,null,null,null,null,null,null,null,null,null,null,null,null,null,null,null,null,null,null,null,null,null,null,null,null,null,null,null,null,null,null,null,null,null,null,null,null,null,null,null,null,null,null,null,null,null,null,null,null,null,null,null,null,null,null,null,null,null,null,null,null,null,null,null,null,null,null,null,null,null,null,null,null,null,null,null,null,null,null,null,null,null,null,null,null,null,null,null,null,null,null,null,null,null,null,null,null,null,null,null,null,null,null,null,null,null,null,null,null,null,null,null,null,null,null,null,null,null,null,null,null,null,null,null,null,null,null,null,null,null,null,null,null,null,null,null,null,null,null,null,null,null,null,null,null,null,null,null,null,null,null,null,null,null,null,null,null,null,null,null,null,null,null,null,null,null,null,null,null,null,null,null,null,null,null,null,null,null,null,null,null,null,null,null,null,null,null,null,null,null,null,null,null,null,null,null,null,null,null,null,null,null,null,null,null,null,null,null,null,null,null,null,null,null,null,null,null,null,null,null,null,null,null,null,null,null,null,null,null,null,null,null,null,null,null,null,null,null,null,null,null,null,null,null,null,null,null,null,null,null,null,null,null,null,null,null,null,null,null,null,null,null,null,null,null,null,null,null,null,null,null,null,null,null,null,null,null,null,null,null,null,null,null,null,null,null,null,null,null,null,null,null,null,null,null,null,null,null,null,null,null,null,null,null,null,null,null,null,null,null,null,null,null,null,null,null,null,null,null,null,null,null,null,null,null,null,null,null,null,null,null,null,null,null,null,null,null,null,null,null,null,null,null,null,null,null,null,null,null,null,null,null,null,null,null,null,null,null,null,null,null,null,null,null,null,null,null,null,null,null,null,null,null,null,null,null,null,null,null,null,null,null,null,null,null,null,null,null,null,null,null,null,null,null,null,null,null,null,null,null,null,null,null,null,null,null,null,null,null,null,null,null,null,null,null,null,null,null,null,null,null,null,null,null,null,null,null,null,null,null,null,null,null,null,null,null,null,null,null,null,null,null,null,null,null,null,null,null,null,null,null,null,null,null,null,null,null,null,null,null,null,null,null,null,null,null,null,null,null,null,null,null,null,null,null,null,null,null,null,null,null,null,null,null,null,null,null,null,null,null,null,null,null,null,null,null,null,null,null,null,null,null,null,null,null,null,null,null,null,null,null,null,null,null,null,null,null,null,null,null,null,null,null,null,null,null,null,null,null,null,null,null,null,null,null,null,null,null,null,null,null,null,null,null,null,null,null,null,null,null,null,null,null,null,null,null,null,null,null,null,null,null,null,null,null,null,null,null,null,null,null,null,null,null,null,null,null,null,null,null,null,null,null,null,null,null,null,null,null,null,null,null,null,null,null,null,null,null,null,null,null,null,null,null,null,null,null,null,null,null,null,null,null,null,null,null,null,null,null,null,null,null,null,null,null,null,null,null,null,null,null,null,null,null,null,null,null,null,null,null,null,null,null,null,null,null,null,null,null,null,null,null,null,null,null,null,null,null,null,null,null,null,null,null,null,null,null,null,null,null,null,null,null,null,null,null,null,null,null,null,null,null,null,null,null,null,null,null,null,null,null,null,null,null,null,null,null,null,null,null,null,null,null,null,null,null,null,null,null,null,null,null,null,null,null,null,null,null,null,null,null,null,null,null,null,null,null,null,null,null,null,null,null,null,null,null,null,null,null,null,null,null,null,null,null,null,null,null,null,null,null,null,null,null,null,null,null,null,null,null,null,null,null,null,null,null,null,null,null,null,null,null,null,null,null,null,null,null,null,null,null,null,null,null,null,null,null,null,null,null,null,null,null,null,null,null,null,null,null,null,null,null,null,null,null,null,null,null,null,null,null,null,null,null,null,null,null,null,null,null,null,null,null,null,null,null,null,null,null,null,null,null,null,null,null,null,null,null,null,null,null,null,null,null,null,null,null,null,null,null,null,null,null,null,null,null,null,null,null,null,null,null,null,null,null,null,null,null,null,null,null,null,null,null,null,null,null,null,null,null,null,null,null,null,null,null,null,null,null,null,null,null,null,null,null,null,null,null,null,null,null,null,null,null,null,null,null,null,null,null,null,null,null,null,null,null,null,null,null,null,null,null,null,null,null,null,null,null,null,null,null,null,null,null,null,null,null,null,null,null,null,null,null,null,null,null,null,null,null,null,null,null,null,null,null,null,null,null,null,null,null,null,null,null,null,null,null,null,null,null,null,null,null,null,null,null,null,null,null,null,null,null,null,null,null,null,null,null,null,null,null,null,null,null,null,null,null,null,null,null,null,null,null,null,null,null,null,null,null,null,null,null,null,null,null,null,null,null,null,null,null,null,null,null,null,null,null,null,null,null,null,null,null,null,null,null,null,null,null,null,null,null,null,null,null,null,null,null,null,null,null,null,null,null,null,null,null,null,null,null,null,null,null,null,null,null,null,null,null,null,null,null,null,null,null,null,null,null,null,null,null,null,null,null,null,null,null,null,null,null,null,null,null,null,null,null,null,null,null,null,null,null,null,null,null,null,null,null,null,null,null,null,null,null,null,null,null,null,null,null,null,null,null,null,null,null,null,null,null,null,null,null,null,null,null,null,null,null,null,null,null,null,null,null,null,null,null,null,null,null,null,null,null,null,null,null,null,null,null,null,null,null,null,null,null,null,null,null,null,null,null,null,null,null,null,null,null,null,null,null,null,null,null,null,null,null,null,null,null,null,null,null,null,null,null,null,null,null,null,null,null,null,null,null,null,null,null,null,null,null,null,null,null,null,null,null,null,null,null,null,null,null,null,null,null,null,null,null,null,null,null,null,null,null,null,null,null,null,null,null,null,null,null,null,null,null,null,null,null,null,null,null,null,null,null,null,null,null,null,null,null,null,null,null,null,null,null,null,null,null,null,null,null,null,null,null,null,null,null,null,null,null,null,null,null,null,null,null,null,null,null,null,null,null,null,null,null,null,null,null,null,null,null,null,null,null,null,null,null,null,null,null,null,null,null,null,null,null,null,null,null,null,null,null,null,null,null,null,null,null,null,null,null,null,null,null,null,null,null,null,null,null,null,null,null,null,null,null,null,null,null,null,null,null,null,null,null,null,null,null,null,null,null,null,null,null,null,null,null,null,null,null,null,null,null,null,null,null,null,null,null,null,null,null,null,null,null,null,null,null,null,null,null,null,null,null,null,null,null,null,null,null,null,null,null,null,null,null,null,null,null,null,null,null,null,null,null,null,null,null,null,null,null,null,null,null,null,null,null,null,null,null,null,null,null,null,null,null,null,null,null,null,null,null,null,null,null,null,null,null,null,null,null,null,null,null,null,null,null,null,null,null,null,null,null,null,null,null,null,null,null,null,null,null,null,null,null,null,null,null,null,null,null,null,null,null,null,null,null,null,null,null,null,null,null,null,null,null,null,null,null,null,null,null,null,null,null,null,null,null,null,null,null,null,null,null,null,null,null,null,null,null,null,null,null,null,null,null,null,null,null,null,null,null,null,null,null,null,null,null,null,null,null,null,null,null,null,null,null,null,null,null,null,null,null,null,null,null,null,null,null,null,null,null,null,null,null,null,null,null,null,null,null,null,null,null,null,null,null,null,null,null,null,null,null,null,null,null,null,null,null,null,null,null,null,null,null,null,null,null,null,null,null,null,null,null,null,null,null,null,null,null,null,null,null,null,null,null,null,null,null,null,null,null,null,null,null,null,null,null,null,null,null,null,null,null,null,null,null,null,null,null,null,null,null,null,null,null,null,null,null,null,null,null,null,null,null,null,null,null,null,null,null,null,null,null,null,null,null,null,null,null,null,null,null,null,null,null,null,null,null,null,null,null,null,null,null,null,null,null,null,null,null,null,null,null,null,null,null,null,null,null,null,null,null,null,null,null,null,null,null,null,null,null,null,null,null,null,null,null,null,null,null,null,null,null,null,null,null,null,null,null,null,null,null,null,null,null,null,null,null,null,null,null,null,null,null,null,null,null,null,null,null,null,null,null,null,null,null,null,null,null,null,null,null,null,null,null,null,null,null,null,null,null,null,null,null,null,null,null,null,null,null,null,null,null,null,null,null,null,null,null,null,null,null,null,null,null,null,null,null,null,null,null,null,null,null,null,null,null,null,null,null,null,null,null,null,null,null,null,null,null,null,null,null,null,null,null,null,null,null,null,null,null,null,null,null,null,null,null,null,null,null,null,null,null,null,null,null,null,null,null,null,null,null,null,null,null,null,null,null,null,null,null,null,null,null,null,null,null,null,null,null,null,null,null,null,null,null,null,null,null,null,null,null,null,null,null,null,null,null,null,null,null,null,null,null,null,null,null,null,null,null,null,null,null,null,null,null,null,null,null,null,null,null,null,null,null,null,null,null,null,null,null,null,null,null,null,null,null,null,null,null,null,null,null,null,null,null,null,null,null,null,null,null,null,null,null,null,null,null,null,null,null,null,null,null,null,null,null,null,null,null,null,null,null,null,null,null,null,null,null,null,null,null,null,null,null,null,null,null,null,null,null,null,null,null,null,null,null,null,null,null,null,null,null,null,null,null,null,null,null,null,null,null,null,null,null,null,null,null,null,null,null,null,null,null,null,null,null,null,null,null,null,null,null,null,null,null,null,null,null,null,null,null,null,null,null,null,null,null,null,null,null,null,null,null,null,null,null,null,null,null,null,null,null,null,null,null,null,null,null,null,null,null,null,null,null,null,null,null,null,null,null,null,null,null,null,null,null,null,null,null,null,null,null,null,null,null,null,null,null,null,null,null,null,null,null,null,null,null,null,null,null,null,null,null,null,null,null,null,null,null,null,null,null,null,null,null,null,null,null,null,null,null,null,null,null,null,null,null,null,null,null,null,null,null,null,null,null,null,null,null,null,null,null,null,null,null,null,null,null,null,null,null,null,null,null,null,null,null,null,null,null,null,null,null,null,null,null,null,null,null,null,null,null,null,null,null,null,null,null,null,null,null,null,null,null,null,null,null,null,null,null,null,null,null,null,null,null,null,null,null,null,null,null,null,null,null,null,null,null,null,null,null,null,null,null,null,null,null,null,null,null,null,null,null,null,null,null,null,null,null,null,null,null,null,null,null,null,null,null,null,null,null,null,null,null,null,null,null,null,null,null,null,null,null,null,null,null,null,null,null,null,null,null,null,null,null,null,null,null,null,null,null,null,null,null,null,null,null,null,null,null,null,null,null,null,null,null,null,null,null,null,null,null,null,null,null,null,null,null,null,null,null,null,null,null,null,null,null,null,null,null,null,null,null,null,null,null,null,null,null,null,null,null,null,null,null,null,null,null,null,null,null,null,null,null,null,null,null,null,null,null,null,null,null,null,null,null,null,null,null,null,null,null,null,null,null,null,null,null,null,null,null,null,null,null,null,null,null,null,null,null,null,null,null,null,null,null,null,null,null,null,null,null,null,null,null,null,null,null,null,null,null,null,null,null,null,null,null,null,null,null,null,null,null,null,null,null,null,null,null,null,null,null,null,null,null,null,null,null,null,null,null,null,null,null,null,null,null,null,null,null,null,null,null,null,null,null,null,null,null,null,null,null,null,null,null,null,null,null,null,null,null,null,null,null,null,null,null,null,null,null,null,null,null,null,null,null,null,null,null,null,null,null,null,null,null,null,null,null,null,null,null,null,null,null,null,null,null,null,null,null,null,null,null,null,null,null,null,null,null,null,null,null,null,null,null,null,null,null,null,null,null,null,null,null,null,null,null,null,null,null,null,null,null,null,null,null,null,null,null,null,null,null,null,null,null,null,null,null,null,null,null,null,null,null,null,null,null,null,null,null,null,null,null,null,null,null,null,null,null,null,null,null,null,null,null,null,null,null,null,null,null,null,null,null,null,null,null,null,null,null,null,null,null,null,null,null,null,null,null,null,null,null,null,null,null,null,null,null,null,null,null,null,null,null,null,null,null,null,null,null,null,null,null,null,null,null,null,null,null,null,null,null,null,null,null,null,null,null,null,null,null,null,null,null,null,null,null,null,null,null,null,null,null,null,null,null,null,null,null,null,null,null,null,null,null,null,null,null,null,null,null,null,null,null,null,null,null,null,null,null,null,null,null,null,null,null,null,null,null,null,null,null,null,null,null,null,null,null,null,null,null,null,null,null,null,null,null,null,null,null,null,null,null,null,null,null,null,null,null,null,null,null,null,null,null,null,null,null,null,null,null,null,null,null,null,null,null,null,null,null,null,null,null,null,null,null,null,null,null,null,null,null,null,null,null,null,null,null,null,null,null,null,null,null,null,null,null,null,null,null,null,null,null,null,null,null,null,null,null,null,null,null,null,null,null,null,null,null,null,null,null,null,null,null,null,null,null,null,null,null,null,null,null,null,null,null,null,null,null,null,null,null,null,null,null,null,null,null,null,null,null,null,null,null,null,null,null,null,null,null,null,null,null,null,null,null,null,null,null,null,null,null,null,null,null,null,null,null,null,null,null,null,null,null,null,null,null,null,null,null,null,null,null,null,null,null,null,null,null,null,null,null,null,null,null,null,null,null,null,null,null,null,null,null,null,null,null,null,null,null,null,null,null,null,null,null,null,null,null,null,null,null,null,null,null,null,null,null,null,null,null,null,null,null,null,null,null,null,null,null,null,null,null,null,null,null,null,null,null,null,null,null,null,null,null,null,null,null,null,null,null,null,null,null,null,null,null,null,null,null,null,null,null,null,null,null,null,null,null,null,null,null,null,null,null,null,null,null,null,null,null,null,null,null,null,null,null,null,null,null,null,null,null,null,null,null,null,null,null,null,null,null,null,null,null,null,null,null,null,null,null,null,null,null,null,null,null,null,null,null,null,null,null,null,null,null,null,null,null,null,null,null,null,null,null,null,null,null,null,null,null,null,null,null,null,null,null,null,null,null,null,null,null,null,null,null,null,null,null,null,null,null,null,null,null,null,null,null,null,null,null,null,null,null,null,null,null,null,null,null,null,null,null,null,null,null,null,null,null,null,null,null,null,null,null,null,null,null,null,null,null,null,null,null,null,null,null,null,null,null,null,null,null,null,null,null,null,null,null,null,null,null,null,null,null,null,null,null,null,null,null,null,null,null,null,null,null,null,null,null,null,null,null,null,null,null,null,null,null,null,null,null,null,null,null,null,null,null,null,null,null,null,null,null,null,null,null,null,null,null,null,null,null,null,null,null,null,null,null,null,null,null,null,null,null,null,null,null,null,null,null,null,null,null,null,null,null,null,null,null,null,null,null,null,null,null,null,null,null,null,null,null,null,null,null,null,null,null,null,null,null,null,null,null,null,null,null,null,null,null,null,null,null,null,null,null,null,null,null,null,null,null,null,null,null,null,null,null,null,null,null,null,null,null,null,null,null,null,null,null,null,null,null,null,null,null,null,null,null,null,null,null,null,null,null,null,null,null,null,null,null,null,null,null,null,null,null,null,null,null,null,null,null,null,null,null,null,null,null,null,null,null,null,null,null,null,null,null,null,null,null,null,null,null,null,null,null,null,null,null,null,null,null,null,null,null,null,null,null,null,null,null,null,null,null,null,null,null,null,null,null,null,null,null,null,null,null,null,null,null,null,null,null,null,null,null,null,null,null,null,null,null,null,null,null,null,null,null,null,null,null,null,null,null,null,null,null,null,null,null,null,null,null,null,null,null,null,null,null,null,null,null,null,null,null,null,null,null,null,null,null,null,null,null,null,null,null,null,null,null,null,null,null,null,null,null,null,null,null,null,null,null,null,null,null,null,null,null,null,null,null,null,null,null,null,null,null,null,null,null,null,null,null,null,null,null,null,null,null,null,null,null,null,null,null,null,null,null,null,null,null,null,null,null,null,null,null,null,null,null,null,null,null,null,null,null,null,null,null,null,null,null,null,null,null,null,null,null,null,null,null,null,null,null,null,null,null,null,null,null,null,null,null,null,null,null,null,null,null,null,null,null,null,null,null,null,null,null,null,null,null,null,null,null,null,null,null,null,null,null,null,null,null,null,null,null,null,null,null,null,null,null,null,null,null,null,null,null,null,null,null,null,null,null,null,null,null,null,null,null,null,null,null,null,null,null,null,null,null,null,null,null,null,null,null,null,null,null,null,null,null,null,null,null,null,null,null,null,null,null,null,null,null,null,null,null,null,null,null,null,null,null,null,null,null,null,null,null,null,null,null,null,null,null,null,null,null,null,null,null,null,null,null,null,null,null,null,null,null,null,null,null,null,null,null,null,null,null,null,null,null,null,null,null,null,null,null,null,null,null,null,null,null,null,null,null,null,null,null,null,null,null,null,null,null,null,null,null,null,null,null,null,null,null,null,null,null,null,null,null,null,null,null,null,null,null,null,null,null,null,null,null,null,null,null,null,null,null,null,null,null,null,null,null,null,null,null,null,null,null,null,null,null,null,null,null,null,null,null,null,null,null,null,null,null,null,null,null,null,null,null,null,null,null,null,null,null,null,null,null,null,null,null,null,null,null,null,null,null,null,null,null,null,null,null,null,null,null,null,null,null,null,null,null,null,null,null,null,null,null,null,null,null,null,null,null,null,null,null,null,null,null,null,null,null,null,null,null,null,null,null,null,null,null,null,null,null,null,null,null,null,null,null,null,null,null,null,null,null,null,null,null,null,null,null,null,null,null,null,null,null,null,null,null,null,null,null,null,null,null,null,null,null,null,null,null,null,null,null,null,null,null,null,null,null,null,null,null,null,null,null,null,null,null,null,null,null,null,null,null,null,null,null,null,null,null,null,null,null,null,null,null,null,null,null,null,null,null,null,null,null,null,null,null,null,null,null,null,null,null,null,null,null,null,null,null,null,null,null,null,null,null,null,null,null,null,null,null,null,null,null,null,null,null,null,null,null,null,null,null,null,null,null,null,null,null,null,null,null,null,null,null,null,null,null,null,null,null,null,null,null,null,null,null,null,null,null,null,null,null,null,null,null,null,null,null,null,null,null,null,null,null,null,null,null,null,null,null,null,null,null,null,null,null,null,null,null,null,null,null,null,null,null,null,null,null,null,null,null,null,null,null,null,null,null,null,null,null,null,null,null,null,null,null,null,null,null,null,null,null,null,null,null,null,null,null,null,null,null,null,null,null,null,null,null,null,null,null,null,null,null,null,null,null,null,null,null,null,null,null,null,null,null,null,null,null,null,null,null,null,null,null,null,null,null,null,null,null,null,null,null,null,null,null,null,null,null,null,null,null,null,null,null,null,null,null,null,null,null,null,null,null,null,null,null,null,null,null,null,null,null,null,null,null,null,null,null,null,null,null,null,null,null,null,null,null,null,null,null,null,null,null,null,null,null,null,null,null,null,null,null,null,null,null,null,null,null,null,null,null,null,null,null,null,null,null,null,null,null,null,null,null,null,null,null,null,null,null,null,null,null,null,null,null,null,null,null,null,null,null,null,null,null,null,null,null,null,null,null,null,null,null,null,null,null,null,null,null,null,null,null,null,null,null,null,null,null,null,null,null,null,null,null,null,null,null,null,null,null,null,null,null,null,null,null,null,null,null,null,null,null,null,null,null,null,null,null,null,null,null,null,null,null,null,null,null,null,null,null,null,null,null,null,null,null,null,null,null,null,null,null,null,null,null,null,null,null,null,null,null,null,null,null,null,null,null,null,null,null,null,null,null,null,null,null,null,null,null,null,null,null,null,null,null,null,null,null,null,null,null,null,null,null,null,null,null,null,null,null,null,null,null,null,null,null,null,null,null,null,null,null,null,null,null,null,null,null,null,null,null,null,null,null,null,null,null,null,null,null,null,null,null,null,null,null,null,null,null,null,null,null,null,null,null,null,null,null,null,null,null,null,null,null,null,null,null,null,null,null,null,null,null,null,null,null,null,null,null,null,null,null,null,null,null,null,null,null,null,null,null,null,null,null,null,null,null,null,null,null,null,null,null,null,null,null,null,null,null,null,null,null,null,null,null,null,null,null,null,null,null,null,null,null,null,null,null,null,null,null,null,null,null,null,null,null,null,null,null,null,null,null,null,null,null,null,null,null,null,null,null,null,null,null,null,null,null,null,null,null,null,null,null,null,null,null,null,null,null,null,null,null,null,null,null,null,null,null,null,null,null,null,null,null,null,null,null,null,null,null,null,null,null,null,null,null,null,null,null,null,null,null,null,null,null,null,null,null,null,null,null,null,null,null,null,null,null,null,null,null,null,null,null,null,null,null,null,null,null,null,null,null,null,null,null,null,null,null,null,null,null,null,null,null,null,null,null,null,null,null,null,null,null,null,null,null,null,null,null,null,null,null,null,null,null,null,null,null,null,null,null,null,null,null,null,null,null,null,null,null,null,null,null,null,null,null,null,null,null,null,null,null,null,null,null,null,null,null,null,null,null,null,null,null,null,null,null,null,null,null,null,null,null,null,null,null,null,null,null,null,null,null,null,null,null,null,null,null,null,null,null,null,null,null,null,null,null,null,null,null,null,null,null,null,null,null,null,null,null,null,null,null,null,null,null,null,null,null,null,null,null,null,null,null,null,null,null,null,null,null,null,null,null,null,null,null,null,null,null,null,null,null,null,null,null,null,null,null,null,null,null,null,null,null,null,null,null,null,null,null,null,null,null,null,null,null,null,null,null,null,null,null,null,null,null,null,null,null,null,null,null,null,null,null,null,null,null,null,null,null,null,null,null,null,null,null,null,null,null,null,null,null,null,null,null,null,null,null,null,null,null,null,null,null,null,null,null,null,null,null,null,null,null,null,null,null,null,null,null,null,null,null,null,null,null,null,null,null,null,null,null,null,null,null,null,null,null,null,null,null,null,null,null,null,null,null,null,null,null,null,null,null,null,null,null,null,null,null,null,null,null,null,null,null,null,null,null,null,null,null,null,null,null,null,null,null,null,null,null,null,null,null,null,null,null,null,null,null,null,null,null,null,null,null,null,null,null,null,null,null,null,null,null,null,null,null,null,null,null,null,null,null,null,null,null,null,null,null,null,null,null,null,null,null,null,null,null,null,null,null,null,null,null,null,null,null,null,null,null,null,null,null,null,null,null,null,null,null,null,null,null,null,null,null,null,null,null,null,null,null,null,null,null,null,null,null,null,null,null,null,null,null,null,null,null,null,null,null,null,null,null,null,null,null,null,null,null,null,null,null,null,null,null,null,null,null,null,null,null,null,null,null,null,null,null,null,null,null,null,null,null,null,null,null,null,null,null,null,null,null,null,null,null,null,null,null,null,null,null,null,null,null,null,null,null,null,null,null,null,null,null,null,null,null,null,null,null,null,null,null,null,null,null,null,null,null,null,null,null,null,null,null,null,null,null,null,null,null,null,null,null,null,null,null,null,null,null,null,null,null,null,null,null,null,null,null,null,null,null,null,null,null,null,null,null,null,null,null,null,null,null,null,null,null,null,null,null,null,null,null,null,null,null,null,null,null,null,null,null,null,null,null,null,null,null,null,null,null,null,null,null,null,null,null,null,null,null,null,null,null,null,null,null,null,null,null,null,null,null,null,null,null,null,null,null,null,null,null,null,null,null,null,null,null,null,null,null,null,null,null,null,null,null,null,null,null,null,null,null,null,null,null,null,null,null,null,null,null,null,null,null,null,null,null,null,null,null,null,null,null,null,null,null,null,null,null,null,null,null,null,null,null,null,null,null,null,null,null,null,null,null,null,null,null,null,null,null,null,null,null,null,null,null,null,null,null,null,null,null,null,null,null,null,null,null,null,null,null,null,null,null,null,null,null,null,null,null,null,null,null,null,null,null,null,null,null,null,null,null,null,null,null,null,null,null,null,null,null,null,null,null,null,null,null,null,null,null,null,null,null,null,null,null,null,null,null,null,null,null,null,null,null,null,null,null,null,null,null,null,null,null,null,null,null,null,null,null,null,null,null,null,null,null,null,null,null,null,null,null,null,null,null,null,null,null,null,null,null,null,null,null,null,null,null,null,null,null,null,null,null,null,null,null,null,null,null,null,null,null,null,null,null,null,null,null,null,null,null,null,null,null,null,null,null,null,null,null,null,null,null,null,null,null,null,null,null,null,null,null,null,null,null,null,null,null,null,null,null,null,null,null,null,null,null,null,null,null,null,null,null,null,null,null,null,null,null,null,null,null,null,null,null,null,null,null,null,null,null,null,null,null,null,null,null,null,null,null,null,null,null,null,null,null,null,null,null,null,null,null,null,null,null,null,null,null,null,null,null,null,null,null,null,null,null,null,null,null,null,null,null,null,null,null,null,null,null,null,null,null,null,null,null,null,null,null,null,null,null,null,null,null,null,null,null,null,null,null,null,null,null,null,null,null,null,null,null,null,null,null,null,null,null,null,null,null,null,null,null,null,null,null,null,null,null,null,null,null,null,null,null,null,null,null,null,null,null,null,null,null,null,null,null,null,null,null,null,null,null,null,null,null,null,null,null,null,null,null,null,null,null,null,null,null,null,null,null,null,null,null,null,null,null,null,null,null,null,null,null,null,null,null,null,null,null,null,null,null,null,null,null,null,null,null,null,null,null,null,null,null,null,null,null,null,null,null,null,null,null,null,null,null,null,null,null,null,null,null,null,null,null,null,null,null,null,null,null,null,null,null,null,null,null,null,null,null,null,null,null,null,null,null,null,null,null,null,null,null,null,null,null,null,null,null,null,null,null,null,null,null,null,null,null,null,null,null,null,null,null,null,null,null,null,null,null,null,null,null,null,null,null,null,null,null,null,null,null,null,null,null,null,null,null,null,null,null,null,null,null,null,null,null,null,null,null,null,null,null,null,null,null,null,null,null,null,null,null,null,null,null,null,null,null,null,null,null,null,null,null,null,null,null,null,null,null,null,null,null,null,null,null,null,null,null,null,null,null,null,null,null,null,null,null,null,null,null,null,null,null,null,null,null,null,null,null,null,null,null,null,null,null,null,null,null,null,null,null,null,null,null,null,null,null,null,null,null,null,null,null,null,null,null,null,null,null,null,null,null,null,null,null,null,null,null,null,null,null,null,null,null,null,null,null,null,null,null,null,null,null,null,null,null,null,null,null,null,null,null,null,null,null,null,null,null,null,null,null,null,null,null,null,null,null,null,null,null,null,null,null,null,null,null,null,null,null,null,null,null,null,null,null,null,null,null,null,null,null,null,null,null,null,null,null,null,null,null,null,null,null,null,null,null,null,null,null,null,null,null,null,null,null,null,null,null,null,null,null,null,null,null,null,null,null,null,null,null,null,null,null,null,null,null,null,null,null,null,null,null,null,null,null,null,null,null,null,null,null,null,null,null,null,null,null,null,null,null,null,null,null,null,null,null,null,null,null,null,null,null,null,null,null,null,null,null,null,null,null,null,null,null,null,null,null,null,null,null,null,null,null,null,null,null,null,null,null,null,null,null,null,null,null,null,null,null,null,null,null,null,null,null,null,null,null,null,null,null,null,null,null,null,null,null,null,null,null,null,null,null,null,null,null,null,null,null,null,null,null,null,null,null,null,null,null,null,null,null,null,null,null,null,null,null,null,null,null,null,null,null,null,null,null,null,null,null,null,null,null,null,null,null,null,null,null,null,null,null,null,null,null,null,null,null,null,null,null,null,null,null,null,null,null,null,null,null,null,null,null,null,null,null,null,null,null,null,null,null,null,null,null,null,null,null,null,null,null,null,null,null,null,null,null,null,null,null,null,null,null,null,null,null,null,null,null,null,null,null,null,null,null,null,null,null,null,null,null,null,null,null,null,null,null,null,null,null,null,null,null,null,null,null,null,null,null,null,null,null,null,null,null,null,null,null,null,null,null,null,null,null,null,null,null,null,null,null,null,null,null,null,null,null,null,null,null,null,null,null,null,null,null,null,null,null,null,null,null,null,null,null,null,null,null,null,null,null,null,null,null,null,null,null,null,null,null,null,null,null,null,null,null,null,null,null,null,null,null,null,null,null,null,null,null,null,null,null,null,null,null,null,null,null,null,null,null,null,null,null,null,null,null,null,null,null,null,null,null,null,null,null,null,null,null,null,null,null,null,null,null,null,null,null,null,null,null,null,null,null,null,null,null,null,null,null,null,null,null,null,null,null,null,null,null,null,null,null,null,null,null,null,null,null,null,null,null,null,null,null,null,null,null,null,null,null,null,null,null,null,null,null,null,null,null,null,null,null,null,null,null,null,null,null,null,null,null,null,null,null,null,null,null,null,null,null,null,null,null,null,null,null,null,null,null,null,null,null,null,null,null,null,null,null,null,null,null,null,null,null,null,null,null,null,null,null,null,null,null,null,null,null,null,null,null,null,null,null,null,null,null,null,null,null,null,null,null,null,null,null,null,null,null,null,null,null,null,null,null,null,null,null,null,null,null,null,null,null,null,null,null,null,null,null,null,null,null,null,null,null,null,null,null,null,null,null,null,null,null,null,null,null,null,null,null,null,null,null,null,null,null,null,null,null,null,null,null,null,null,null,null,null,null,null,null,null,null,null,null,null,null,null,null,null,null,null,null,null,null,null,null,null,null,null,null,null,null,null,null,null,null,null,null,null,null,null,null,null,null,null,null,null,null,null,null,null,null,null,null,null,null,null,null,null,null,null,null,null,null,null,null,null,null,null,null,null,null,null,null,null,null,null,null,null,null,null,null,null,null,null,null,null,null,null,null,null,null,null,null,null,null,null,null,null,null,null,null,null,null,null,null,null,null,null,null,null,null,null,null,null,null,null,null,null,null,null,null,null,null,null,null,null,null,null,null,null,null,null,null,null,null,null,null,null,null,null,null,null,null,null,null,null,null,null,null,null,null,null,null,null,null,null,null,null,null,null,null,null,null,null,null,null,null,null,null,null,null,null,null,null,null,null,null,null,null,null,null,null,null,null,null,null,null,null,null,null,null,null,null,null,null,null,null,null,null,null,null,null,null,null,null,null,null,null,null,null,null,null,null,null,null,null,null,null,null,null,null,null,null,null,null,null,null,null,null,null,null,null,null,null,null,null,null,null,null,null,null,null,null,null,null,null,null,null,null,null,null,null,null,null,null,null,null,null,null,null,null,null,null,null,null,null,null,null,null,null,null,null,null,null,null,null,null,null,null,null,null,null,null,null,null,null,null,null,null,null,null,null,null,null,null,null,null,null,null,null,null,null,null,null,null,null,null,null,null,null,null,null,null,null,null,null,null,null,null,null,null,null,null,null,null,null,null,null,null,null,null,null,null,null,null,null,null,null,null,null,null,null,null,null,null,null,null,null,null,null,null,null,null,null,null,null,null,null,null,null,null,null,null,null,null,null,null,null,null,null,null,null,null,null,null,null,null,null,null,null,null,null,null,null,null,null,null,null,null,null,null,null,null,null,null,null,null,null,null,null,null,null,null,null,null,null,null,null,null,null,null,null,null,null,null,null,null,null,null,null,null,null,null,null,null,null,null,null,null,null,null,null,null,null,null,null,null,null,null,null,null,null,null,null,null,null,null,null,null,null,null,null,null,null,null,null,null,null,null,null,null,null,null,null,null,null,null,null,null,null,null,null,null,null,null,null,null,null,null,null,null,null,null,null,null,null,null,null,null,null,null,null,null,null,null,null,null,null,null,null,null,null,null,null,null,null,null,null,null,null,null,null,null,null,null,null,null,null,null,null,null,null,null,null,null,null,null,null,null,null,null,null,null,null,null,null,null,null,null,null,null,null,null,null,null,null,null,null,null,null,null,null,null,null,null,null,null,null,null,null,null,null,null,null,null,null,null,null,null,null,null,null,null,null,null,null,null,null,null,null,null,null,null,null,null,null,null,null,null,null,null,null,null,null,null,null,null,null,null,null,null,null,null,null,null,null,null,null,null,null,null,null,null,null,null,null,null,null,null,null,null,null,null,null,null,null,null,null,null,null,null,null,null,null,null,null,null,null,null,null,null,null,null,null,null,null,null,null,null,null,null,null,null,null,null,null,null,null,null,null,null,null,null,null,null,null,null,null,null,null,null,null,null,null,null,null,null,null,null,null,null,null,null,null,null,null,null,null,null,null,null,null,null,null,null,null,null,null,null,null,null,null,null,null,null,null,null,null,null,null,null,null,null,null,null,null,null,null,null,null,null,null,null,null,null,null,null,null,null,null,null,null,null,null,null,null,null,null,null,null,null,null,null,null,null,null,null,null,null,null,null,null,null,null,null,null,null,null,null,null,null,null,null,null,null,null,null,null,null,null,null,null,null,null,null,null,null,null,null,null,null,null,null,null,null,null,null,null,null,null,null,null,null,null,null,null,null,null,null,null,null,null,null,null,null,null,null,null,null,null,null,null,null,null,null,null,null,null,null,null,null,null,null,null,null,null,null,null,null,null,null,null,null,null,null,null,null,null,null,null,null,null,null,null,null,null,null,null,null,null,null,null,null,null,null,null,null,null,null,null,null,null,null,null,null,null,null,null,null,null,null,null,null,null,null,null,null,null,null,null,null,null,null,null,null,null,null,null,null,null,null,null,null,null,null,null,null,null,null,null,null,null,null,null,null,null,null,null,null,null,null,null,null,null,null,null,null,null,null,null,null,null,null,null,null,null,null,null,null,null,null,null,null,null,null,null,null,null,null,null,null,null,null,null,null,null,null,null,null,null,null,null,null,null,null,null,null,null,null,null,null,null,null,null,null,null,null,null,null,null,null,null,null,null,null,null,null,null,null,null,null,null,null,null,null,null,null,null,null,null,null,null,null,null,null,null,null,null,null,null,null,null,null,null,null,null,null,null,null,null,null,null,null,null,null,null,null,null,null,null,null,null,null,null,null,null,null,null,null,null,null,null,null,null,null,null,null,null,null,null,null,null,null,null,null,null,null,null,null,null,null,null,null,null,null,null,null,null,null,null,null,null,null,null,null,null,null,null,null,null,null,null,null,null,null,null,null,null,null,null,null,null,null,null,null,null,null,null,null,null,null,null,null,null,null,null,null,null,null,null,null,null,null,null,null,null,null,null,null,null,null,null,null,null,null,null,null,null,null,null,null,null,null,null,null,null,null,null,null,null,null,null,null,null,null,null,null,null,null,null,null,null,null,null,null,null,null,null,null,null,null,null,null,null,null,null,null,null,null,null,null,null,null,null,null,null,null,null,null,null,null,null,null,null,null,null,null,null,null,null,null,null,null,null,null,null,null,null,null,null,null,null,null,null,null,null,null,null,null,null,null,null,null,null,null,null,null,null,null,null,null,null,null,null,null,null,null,null,null,null,null,null,null,null,null,null,null,null,null,null,null,null,null,null,null,null,null,null,null,null,null,null,null,null,null,null,null,null,null,null,null,null,null,null,null,null,null,null,null,null,null,null,null,null,null,null,null,null,null,null,null,null,null,null,null,null,null,null,null,null,null,null,null,null,null,null,null,null,null,null,null,null,null,null,null,null,null,null,null,null,null,null,null,null,null,null,null,null,null,null,null,null,null,null,null,null,null,null,null,null,null,null,null,null,null,null,null,null,null,null,null,null,null,null,null,null,null,null,null,null,null,null,null,null,null,null,null,null,null,null,null,null,null,null,null,null,null,null,null,null,null,null,null,null,null,null,null,null,null,null,null,null,null,null,null,null,null,null,null,null,null,null,null,null,null,null,null,null,null,null,null,null,null,null,null,null,null,null,null,null,null,null,null,null,null,null,null,null,null,null,null,null,null,null,null,null,null,null,null,null,null,null,null,null,null,null,null,null,null,null,null,null,null,null,null,null,null,null,null,null,null,null,null,null,null,null,null,null,null,null,null,null,null,null,null,null,null,null,null,null,null,null,null,null,null,null,null,null,null,null,null,null,null,null,null,null,null,null,null,null,null,null,null,null,null,null,null,null,null,null,null,null,null,null,null,null,null,null,null,null,null,null,null,null,null,null,null,null,null,null,null,null,null,null,null,null,null,null,null,null,null,null,null,null,null,null,null,null,null,null,null,null,null,null,null,null,null,null,null,null,null,null,null,null,null,null,null,null,null,null,null,null,null,null,null,null,null,null,null,null,null,null,null,null,null,null,null,null,null,null,null,null,null,null,null,null,null,null,null,null,null,null,null,null,null,null,null,null,null,null,null,null,null,null,null,null,null,null,null,null,null,null,null,null,null,null,null,null,null,null,null,null,null,null,null,null,null,null,null,null,null,null,null,null,null,null,null,null,null,null,null,null,null,null,null,null,null,null,null,null,null,null,null,null,null,null,null,null,null,null,null,null,null,null,null,null,null,null,null,null,null,null,null,null,null,null,null,null,null,null,null,null,null,null,null,null,null,null,null,null,null,null,null,null,null,null,null,null,null,null,null,null,null,null,null,null,null,null,null,null,null,null,null,null,null,null,null,null,null,null,null,null,null,null,null,null,null,null,null,null,null,null,null,null,null,null,null,null,null,null,null,null,null,null,null,null,null,null,null,null,null,null,null,null,null,null,null,null,null,null,null,null,null,null,null,null,null,null,null,null,null,null,null,null,null,null,null,null,null,null,null,null,null,null,null,null,null,null,null,null,null,null,null,null,null,null,null,null,null,null,null,null,null,null,null,null,null,null,null,null,null,null,null,null,null,null,null,null,null,null,null,null,null,null,null,null,null,null,null,null,null,null,null,null,null,null,null,null,null,null,null,null,null,null,null,null,null,null,null,null,null,null,null,null,null,null,null,null,null,null,null,null,null,null,null,null,null,null,null,null,null,null,null,null,null,null,null,null,null,null,null,null,null,null,null,null,null,null,null,null,null,null,null,null,null,null,null,null,null,null,null,null,null,null,null,null,null,null,null,null,null,null,null,null,null,null,null,null,null,null,null,null,null,null,null,null,null,null,null,null,null,null,null,null,null,null,null,null,null,null,null,null,null,null,null,null,null,null,null,null,null,null,null,null,null,null,null,null,null,null,null,null,null,null,null,null,null,null,null,null,null,null,null,null,null,null,null,null,null,null,null,null,null,null,null,null,null,null,null,null,null,null,null,null,null,null,null,null,null,null,null,null,null,null,null,null,null,null,null,null,null,null,null,null,null,null,null,null,null,null,null,null,null,null,null,null,null,null,null,null,null,null,null,null,null,null,null,null,null,null,null,null,null,null,null,null,null,null,null,null,null,null,null,null,null,null,null,null,null,null,null,null,null,null,null,null,null,null,null,null,null,null,null,null,null,null,null,null,null,null,null,null,null,null,null,null,null,null,null,null,null,null,null,null,null,null,null,null,null,null,null,null,null,null,null,null,null,null,null,null,null,null,null,null,null,null,null,null,null,null,null,null,null,null,null,null,null,null,null,null,null,null,null,null,null,null,null,null,null,null,null,null,null,null,null,null,null,null,null,null,null,null,null,null,null,null,null,null,null,null,null,null,null,null,null,null,null,null,null,null,null,null,null,null,null,null,null,null,null,null,null,null,null,null,null,null,null,null,null,null,null,null,null,null,null,null,null,null,null,null,null,null,null,null,null,null,null,null,null,null,null,null,null,null,null,null,null,null,null,null,null,null,null,null,null,null,null,null,null,null,null,null,null,null,null,null,null,null,null,null,null,null,null,null,null,null,null,null,null,null,null,null,null,null,null,null,null,null,null,null,null,null,null,null,null,null,null,null,null,null,null,null,null,null,null,null,null,null,null,null,null,null,null,null,null,null,null,null,null,null,null,null,null,null,null,null,null,null,null,null,null,null,null,null,null,null,null,null,null,null,null,null,null,null,null,null,null,null,null,null,null,null,null,null,null,null,null,null,null,null,null,null,null,null,null,null,null,null,null,null,null,null,null,null,null,null,null,null,null,null,null,null,null,null,null,null,null,null,null,null,null,null,null,null,null,null,null,null,null,null,null,null,null,null,null,null,null,null,null,null,null,null,null,null,null,null,null,null,null,null,null,null,null,null,null,null,null,null,null,null,null,null,null,null,null,null,null,null,null,null,null,null,null,null,null,null,null,null,null,null,null,null,null,null,null,null,null,null,null,null,null,null,null,null,null,null,null,null,null,null,null,null,null,null,null,null,null,null,null,null,null,null,null,null,null,null,null,null,null,null,null,null,null,null,null,null,null,null,null,null,null,null,null,null,null,null,null,null,null,null,null,null,null,null,null,null,null,null,null,null,null,null,null,null,null,null,null,null,null,null,null,null,null,null,null,null,null,null,null,null,null,null,null,null,null,null,null,null,null,null,null,null,null,null,null,null,null,null,null,null,null,null,null,null,null,null,null,null,null,null,null,null,null,null,null,null,null,null,null,null,null,null,null,null,null,null,null,null,null,null,null,null,null,null,null,null,null,null,null,null,null,null,null,null,null,null,null,null,null,null,null,null,null,null,null,null,null,null,null,null,null,null,null,null,null,null,null,null,null,null,null,null,null,null,null,null,null,null,null,null,null,null,null,null,null,null,null,null,null,null,null,null,null,null,null,null,null,null,null,null,null,null,null,null,null,null,null,null,null,null,null,null,null,null,null,null,null,null,null,null,null,null,null,null,null,null,null,null,null,null,null,null,null,null,null,null,null,null,null,null,null,null,null,null,null,null,null,null,null,null,null,null,null,null,null,null,null,null,null,null,null,null,null,null,null,null,null,null,null,null,null,null,null,null,null,null,null,null,null,null,null,null,null,null,null,null,null,null,null,null,null,null,null,null,null,null,null,null,null,null,null,null,null,null,null,null,null,null,null,null,null,null,null,null,null,null,null,null,null,null,null,null,null,null,null,null,null,null,null,null,null,null,null,null,null,null,null,null,null,null,null,null,null,null,null,null,null,null,null,null,null,null,null,null,null,null,null,null,null,null,null,null,null,null,null,null,null,null,null,null,null,null,null,null,null,null,null,null,null,null,null,null,null,null,null,null,null,null,null,null,null,null,null,null,null,null,null,null,null,null,null,null,null,null,null,null,null,null,null,null,null,null,null,null,null,null,null,null,null,null,null,null,null,null,null,null,null,null,null,null,null,null,null,null,null,null,null,null,null,null,null,null,null,null,null,null,null,null,null,null,null,null,null,null,null,null,null,null,null,null,null,null,null,null,null,null,null,null,null,null,null,null,null,null,null,null,null,null,null,null,null,null,null,null,null,null,null,null,null,null,null,null,null,null,null,null,null,null,null,null,null,null,null,null,null,null,null,null,null,null,null,null,null,null,null,null,null,null,null,null,null,null,null,null,null,null,null,null,null,null,null,null,null,null,null,null,null,null,null,null,null,null,null,null,null,null,null,null,null,null,null,null,null,null,null,null,null,null,null,null,null,null,null,null,null,null,null,null,null,null,null,null,null,null,null,null,null,null,null,null,null,null,null,null,null,null,null,null,null,null,null,null,null,null,null,null,null,null,null,null,null,null,null,null,null,null,null,null,null,null,null,null,null,null,null,null,null,null,null,null,null,null,null,null,null,null,null,null,null,null,null,null,null,null,null,null,null,null,null,null,null,null,null,null,null,null,null,null,null,null,null,null,null,null,null,null,null,null,null,null,null,null,null,null,null,null,null,null,null,null,null,null,null,null,null,null,null,null,null,null,null,null,null,null,null,null,null,null,null,null,null,null,null,null,null,null,null,null,null,null,null,null,null,null,null,null,null,null,null,null,null,null,null,null,null,null,null,null,null,null,null,null,null,null,null,null,null,null,null,null,null,null,null,null,null,null,null,null,null,null,null,null,null,null,null,null,null,null,null,null,null,null,null,null,null,null,null,null,null,null,null,null,null,null,null,null,null,null,null,null,null,null,null,null,null,null,null,null,null,null,null,null,null,null,null,null,null,null,null,null,null,null,null,null,null,null,null,null,null,null,null,null,null,null,null,null,null,null,null,null,null,null,null,null,null,null,null,null,null,null,null,null,null,null,null,null,null,null,null,null,null,null,null,null,null,null,null,null,null,null,null,null,null,null,null,null,null,null,null,null,null,null,null,null,null,null,null,null,null,null,null,null,null,null,null,null,null,null,null,null,null,null,null,null,null,null,null,null,null,null,null,null,null,null,null,null,null,null,null,null,null,null,null,null,null,null,null,null,null,null,null,null,null,null,null,null,null,null,null,null,null,null,null,null,null,null,null,null,null,null,null,null,null,null,null,null,null,null,null,null,null,null,null,null,null,null,null,null,null,null,null,null,null,null,null,null,null,null,null,null,null,null,null,null,null,null,null,null,null,null,null,null,null,null,null,null,null,null,null,null,null,null,null,null,null,null,null,null,null,null,null,null,null,null,null,null,null,null,null,null,null,null,null,null,null,null,null,null,null,null,null,null,null,null,null,null,null,null,null,null,null,null,null,null,null,null,null,null,null,null,null,null,null,null,null,null,null,null,null,null,null,null,null,null,null,null,null,null,null,null,null,null,null,null,null,null,null,null,null,null,null,null,null,null,null,null,null,null,null,null,null,null,null,null,null,null,null,null,null,null,null,null,null,null,null,null,null,null,null,null,null,null,null,null,null,null,null,null,null,null,null,null,null,null,null,null,null,null,null,null,null,null,null,null,null,null,null,null,null,null,null,null,null,null,null,null,null,null,null,null,null,null,null,null,null,null,null,null,null,null,null,null,null,null,null,null,null,null,null,null,null,null,null,null,null,null,null,null,null,null,null,null,null,null,null,null,null,null,null,null,null,null,null,null,null,null,null,null,null,null,null,null,null,null,null,null,null,null,null,null,null,null,null,null,null,null,null,null,null,null,null,null,null,null,null,null,null,null,null,null,null,null,null,null,null,null,null,null,null,null,null,null,null,null,null,null,null,null,null,null,null,null,null,null,null,null,null,null,null,null,null,null,null,null,null,null,null,null,null,null,null,null,null,null,null,null,null,null,null,null,null,null,null,null,null,null,null,null,null,null,null,null,null,null,null,null,null,null,null,null,null,null,null,null,null,null,null,null,null,null,null,null,null,null,null,null,null,null,null,null,null,null,null,null,null,null,null,null,null,null,null,null,null,null,null,null,null,null,null,null,null,null,null,null,null,null,null,null,null,null,null,null,null,null,null,null,null,null,null,null,null,null,null,null,null,null,null,null,null,null,null,null,null,null,null,null,null,null,null,null,null,null,null,null,null,null,null,null,null,null,null,null,null,null,null,null,null,null,null,null,null,null,null,null,null,null,null,null,null,null,null,null,null,null,null,null,null,null,null,null,null,null,null,null,null,null,null,null,null,null,null,null,null,null,null,null,null,null,null,null,null,null,null,null,null,null,null,null,null,null,null,null,null,null,null,null,null,null,null,null,null,null,null,null,null,null,null,null,null,null,null,null,null,null,null,null,null,null,null,null,null,null,null,null,null,null,null,null,null,null,null,null,null,null,null,null,null,null,null,null,null,null,null,null,null,null,null,null,null,null,null,null,null,null,null,null,null,null,null,null,null,null,null,null,null,null,null,null,null,null,null,null,null,null,null,null,null,null,null,null,null,null,null,null,null,null,null,null,null,null,null,null,null,null,null,null,null,null,null,null,null,null,null,null,null,null,null,null,null,null,null,null,null,null,null,null,null,null,null,null,null,null,null,null,null,null,null,null,null,null,null,null,null,null,null,null,null,null,null,null,null,null,null,null,null,null,null,null,null,null,null,null,null,null,null,null,null,null,null,null,null,null,null,null,null,null,null,null,null,null,null,null,null,null,null,null,null,null,null,null,null,null,null,null,null,null,null,null,null,null,null,null,null,null,null,null,null,null,null,null,null,null,null,null,null,null,null,null,null,null,null,null,null,null,null,null,null,null,null,null,null,null,null,null,null,null,null,null,null,null,null,null,null,null,null,null,null,null,null,null,null,null,null,null,null,null,null,null,null,null,null,null,null,null,null,null,null,null,null,null,null,null,null,null,null,null,null,null,null,null,null,null,null,null,null,null,null,null,null,null,null,null,null,null,null,null,null,null,null,null,null,null,null,null,null,null,null,null,null,null,null,null,null,null,null,null,null,null,null,null,null,null,null,null,null,null,null,null,null,null,null,null,null,null,null,null,null,null,null,null,null,null,null,null,null,null,null,null,null,null,null,null,null,null,null,null,null,null,null,null,null,null,null,null,null,null,null,null,null,null,null,null,null,null,null,null,null,null,null,null,null,null,null,null,null,null,null,null,null,null,null,null,null,null,null,null,null,null,null,null,null,null,null,null,null,null,null,null,null,null,null,null,null,null,null,null,null,null,null,null,null,null,null,null,null,null,null,null,null,null,null,null,null,null,null,null,null,null,null,null,null,null,null,null,null,null,null,null,null,null,null,null,null,null,null,null,null,null,null,null,null,null,null,null,null,null,null,null,null,null,null,null,null,null,null,null,null,null,null,null,null,null,null,null,null,null,null,null,null,null,null,null,null,null,null,null,null,null,null,null,null,null,null,null,null,null,null,null,null,null,null,null,null,null,null,null,null,null,null,null,null,null,null,null,null,null,null,null,null,null,null,null,null,null,null,null,null,null,null,null,null,null,null,null,null,null,null,null,null,null,null,null,null,null,null,null,null,null,null,null,null,null,null,null,null,null,null,null,null,null,null,null,null,null,null,null,null,null,null,null,null,null,null,null,null,null,null,null,null,null,null,null,null,null,null,null,null,null,null,null,null,null,null,null,null,null,null,null,null,null,null,null,null,null,null,null,null,null,null,null,null,null,null,null,null,null,null,null,null,null,null,null,null,null,null,null,null,null,null,null,null,null,null,null,null,null,null,null,null,null,null,null,null,null,null,null,null,null,null,null,null,null,null,null,null,null,null,null,null,null,null,null,null,null,null,null,null,null,null,null,null,null,null,null,null,null,null,null,null,null,null,null,null,null,null,null,null,null,null,null,null,null,null,null,null,null,null,null,null,null,null,null,null,null,null,null,null,null,null,null,null,null,null,null,null,null,null,null,null,null,null,null,null,null,null,null,null,null,null,null,null,null,null,null,null,null,null,null,null,null,null,null,null,null,null,null,null,null,null,null,null,null,null,null,null,null,null,null,null,null,null,null,null,null,null,null,null,null,null,null,null,null,null,null,null,null,null,null,null,null,null,null,null,null,null,null,null,null,null,null,null,null,null,null,null,null,null,null,null,null,null,null,null,null,null,null,null,null,null,null,null,null,null,null,null,null,null,null,null,null,null,null,null,null,null,null,null,null,null,null,null,null,null,null,null,null,null,null,null,null,null,null,null,null,null,null,null,null,null,null,null,null,null,null,null,null,null,null,null,null,null,null,null,null,null,null,null,null,null,null,null,null,null,null,null,null,null,null,null,null,null,null,null,null,null,null,null,null,null,null,null,null,null,null,null,null,null,null,null,null,null,null,null,null,null,null,null,null,null,{"$f":"SUM(A102:XFC102)","v":0}]
[null,null,"Nieruchomości - budynki/lokale"]
[null,null,"Budynek/lokal - nr księgi wieczystej:","Rodzaj nieruchomości",null,"Lokalizacja",null,null,"Ustanowiona hipoteka","Aktualna wartość"]
[]
[null,null,"Budynki OGÓŁEM:",null,null,null,null,null,null,0]
[null,null,"Wyposażenie/ maszyny i urządzenia"]
[null,null,"Wyposażenie - cechy znamionowe:",null,null,null,null,null,"Ustanowione zastawy / przewłaszczenia","Aktualna wartość"]
[null,null,null,null,null,null,null,null,"Tak"]
[null,null,"Wyposażenie OGÓŁEM:",null,null,null,null,null,null,0]
[null,null,"Środki transportu"]
[null,null,"Rodzaj pojazdu/marka:",null,null,null,"Nr rejestracyjny","Rok produkcji","Ustanowione zastawy / przewłaszczenia","Aktualna wartość"]
[]
[null,null,"Środki transportu OGÓŁEM:",null,null,null,null,null,null,0]
[null,null,"Inne aktywa trwałe"]
[null,null,"Inne aktywa:",null,null,null,null,"Rok produkcji","Ustanowione zastawy / przewłaszczenia","Aktualna wartość"]
[]
[null,null,"Inne aktywa OGÓŁEM:",null,null,null,null,null,null,0]
[null,null,"Opis środków obrotowych"]
[null,null,"Zapasy produkcyjne:"]
[null,null,"Zapasy produkcyjne","Inne informacje o zapasach (np. sezonowość, przewłaszczenia zastawy):",null,null,null,null,null,"Wartość"]
[null,null,"1. Surowce i materiały/Towary handlowe"]
[null,null,"2. Produkcja w toku"]
[null,null,"3. Wyroby gotowe"]
[null,null,"OGÓŁEM:",null,null,null,null,null,null,{"$f":"SUM(J122:J124)","v":0}]
[null,null,"Należności:"]
[null,null,"Nazwa dłużnika",null,null,"Termin należności\n (wybierz z listy)",null,"Termin spodziewanej zapłaty",null,"Kwota"]
[]
[]
[]
[]
[]
[]
[null,null,"OGÓŁEM:",null,null,null,null,null,null,{"$f":"SUM(J129:J133)","v":0}]
[null,null,"Gotówka (bank i dom):"]
[null,null,"Nazwa banku",null,null,null,null,"Waluta",null,"Aktualna wartość"]
[]
[]
[]
[]
[null,null,"OGÓŁEM:",null,null,null,null,null,null,{"$f":"SUM(J138:J140)","v":0}]
[null,null,"Inne bieżące aktywa:"]
[null,null,"Nazwa/opis",null,null,null,null,null,null,"Wartość"]
[]
[]
[]
[null,null,"Inne aktywa Ogółem:",null,null,null,null,null,null,{"$f":"SUM(J144:J146)","v":0}]
[null,null,"Opis zobowiązań"]
[null,null,"Pożyczki i kredyty długoterminowe"]
[null,null,"Kredytodawca","Rata miesięczna/kwartalna",null,"Zadłużenie od dnia:",null,"Termin całkowitej spłaty",null,"Aktualne zadłużenie"]
[]
[]
[]
[]
[]
[]
[null,null,"OGÓŁEM:",null,null,null,null,null,null,{"$f":"SUM(J152:J156)","v":0}]
[null,null,"Inne zobowiązania długoterminowe np. (leasing)"]
[null,null,"Wierzyciel","Rata miesięczna/kwartalna",null,"Zobowiązanie od dnia:",null,"Termin całkowitej spłaty",null,"Aktualne zadłużenie"]
[]
[]
[]
[]
[null,null,"OGÓŁEM:",null,null,null,null,null,null,{"$f":"SUM(J161:J163)","v":0}]
[null,null,"Pożyczki i kredyty krótkoterminowe"]
[null,null,"Kredytodawca","Rata miesięczna/kwartalna",null,"Zadłużenie od dnia:",null,"Termin całkowitej spłaty",null,"Aktualne zadłużenie"]
[]
[]
[]
[]
[]
[]
[null,null,"OGÓŁEM:",null,null,null,null,null,null,{"$f":"SUM(J168:J172)","v":0}]
[null,null,"Zobowiązania do dostawców"]
[null,null,"Nazwa dostawcy",null,null,"Zobowiązanie od dnia:",null,"Termin zapłaty",null,"Kwota"]
[]
[]
[]
[]
[]
[]
[null,null,"OGÓŁEM:",null,null,null,null,null,null,{"$f":"SUM(J177:J181)","v":0}]
[null,null,"Zobowiązania do budżetu"]
[null,null,"Nazwa jednostki budżetowej",null,null,"Zobowiązanie od dnia:",null,"Termin zapłaty",null,"Kwota"]
[]
[]
[]
[]
[]
[]
[null,null,"OGÓŁEM:",null,null,null,null,null,null,{"$f":"SUM(J186:J190)","v":0}]
[null,null,"Inne zobowiązania krótkoterminowe"]
[null,null,"Nazwa wierzyciela",null,null,"Zobowiązanie od dnia:",null,"Termin zapłaty",null,"Kwota"]
[]
[]
[]
[]
[null,null,"OGÓŁEM:",null,null,null,null,null,null,{"$f":"SUM(J195:J197)","v":0}]
[null,null,"Proponowane zabezpieczenia pożyczki"]
[null,null,"1.  Poręczenie"]
[null,null,"Nazwisko i imię",null,"Adres zamieszkania",null,null,null,null,"Dochód miesięczny netto"]
[]
[]
[]
[]
[]
[null,null,"2. Weksel in blanco",null,"TAK"]
[null,null,"3. Hipoteka (rodzaj nieruchomości)",null,"Nr Księgi Wieczystej",null,null,null,null,"Wartość nieruchomości"]
[]
[]
[]
[null,null,"4. Inne zabezpieczenia:",null,null,null,null,null,null,"Wartość"]
[]
[]
[null,null,"OŚWIADCZENIA  WNIOSKODAWCY  "]
[null,null,"Świadom/a odpowiedzialności karnej z tyt.art. 286 §1 i 297§1 kk, potwierdzam prawdziwość informacji podanych w niniejszym Wniosku i załącznikach."]
[null,null,"Czy Wnioskodawca znajduje się w trudnej sytuacji w rozumieniu art.7 ust 1 lit. d Rozporządzenia EFRR, za wyjątkiem szczególnych przypadków określonych w tym przepisie. "]
[null,null,"Czy Wnioskodawca jest podmiotem powiązanym osobowo lub kapitałowo z FDPA "]
[null,null,"Czy Wnioskodawca jest podmiotem wobec którego zostało zakazane udzielanie bezpośredniego lub pośredniego wsparciu ze środków unijnych na podstawie art. 1 ustawy z dnia 13 kwietnia 2022 r. o szczególnych rozwiązaniach w zakresie przeciwdziałania wspieraniu agresji na Ukrainę oraz służących ochronie bezpieczeństwa narodowego. "]
[null,null,"Czy Wnioskodawca jest podmiotem w toku likwidacji, w stanie upadłości, w toku postępowania  upadłościowego naprawczego lub pod zarządem komisarycznym."]
[null,null,"Czy Wnioskodawca jest podmiotem wobec którego oznaczono zakaz dostępu do funduszy europejskich na podstawie odrębnych przepisów:\n1) art. 207 ust. 4 ustawy z dnia 27.08.2009 r. o finansach publicznych \n2) art. 12 ust.1 pkt 1 ustawy z dnia 15 czerwca 2012 r. o skutkach powierzania wykonywania pracy cudzoziemcom przebywającym wbrew przepisom na terytorium Rzeczypospolitej Polskiej,\n3) art. 9 ust. 1 pkt 2a ustawy z dnia 28 października 2002 r. o odpowiedzialności podmiotów zbiorowych za czyny zabronione pod groźbą kary.\n"]
[null,null,"Wyrażam zgodę na wysyłanie przez Fundację na rzecz Rozwoju Polskiego Rolnictwa z siedzibą w Warszawie (FDPA) na moje konto poczty elektronicznej, zgodnie z Ustawą z dnia 16.07.2004r Prawo Telekomunikacyjne (t.j.: Dz.U. 2017, poz. 1907) informacji handlowych/marketingowych za pomocą telekomunikacyjnych urządzeń końcowych w celach marketingu usług świadczonych przez FDPA, w szczególności o ofercie pożyczkowej FDPA, organizowanych przez FDPA konferencjach, konkursach, warsztatach, seminariach, szkoleniach i innych wydarzeniach. Zgoda udzielona Fundacji może być w dowolnym momencie cofnięta, poprzez wysłanie wiadomości e-mail na adres: iodo@fdpa.org.pl, lub listownie na adres: ul. Gombrowicza 19, 01-682 Warszawa."]
[null,null," Wyrażam zgodę na wysyłanie przez Fundację na rzecz Rozwoju Polskiego Rolnictwa z siedzibą w Warszawie (FDPA) na moje konto poczty elektronicznej, zgodnie z Ustawą z dnia 18.07.2002r. o świadczeniu usług drogą elektroniczną (t.j.: Dz.U. 2017 poz. 1119), informacji handlowych/marketingowych dotyczących FDPA, w szczególności o ofercie pożyczkowej FDPA, organizowanych przez FDPA konferencjach, konkursach, warsztatach, seminariach, szkoleniach i innych wydarzeniach. Zgoda udzielona Fundacji może być w dowolnym momencie cofnięta, poprzez wysłanie wiadomości e-mail na adres: iodo@fdpa.org.pl, lub listownie na adres: ul. Gombrowicza 19, 01-682 Warszawa."]
[null,null,"W związku z realizacją Inwestycji Końcowej będę przestrzegał(a) zasad horyzontalnych Unii Europejskiej, o których mowa w art. 9 rozporządzenia Parlamentu Europejskiego i Rady (UE) nr 2021/1060, w tym zasady równości kobiet i mężczyzn, zasady równości szans i niedyskryminacji, zasady zrównoważonego rozwoju oraz obowiązku działania zgodnie z odpowiednimi przepisami w zakresie ochrony środowiska. \n  Oświadczam, że działalność prowadzona w związku ze wsparciem uzyskanym z Jednostkowej Pożyczki nie jest dyskryminująca tj. nikogo nie różnicuje, nie wyklucza lub nie ogranicza, ze względu na jakiekolwiek przesłanki, w szczególności płeć, rasę, kolor skóry, pochodzenie etniczne lub społeczne, cechy genetyczne, język, religię lub przekonania, poglądy polityczne lub wszelkie inne poglądy, przynależność do mniejszości narodowej, majątek, urodzenie, niepełnosprawność, wiek lub orientację seksualną.\n"]
[null,null,"Szanowna Pani/Panie,\nSpełniając obowiązek informacyjny wynikający z Rozporządzenia Parlamentu Europejskiego i Rady (UE) 2016/679 z 27.04.2016 r. w sprawie ochrony osób fizycznych w związku z przetwarzaniem danych osobowych i w sprawie swobodnego przepływu takich danych oraz uchylenia dyrektywy 95/46/WE (Dz.Urz. UE L 119, s. 1) zwane dalej: „RODO”, informujemy, co następuje:\n1.  Kto jest administratorem Pani/Pana danych osobowych?\n  Administratorem Pani/Pana danych osobowych przetwarzanych w ramach instrumentu finansowego pn. „Pożyczka inwestycyjna dla RMR” (nr 2/FEMA/1424/2025/II/EFRR/155) w ramach programu Fundusze Europejskie dla Mazowsza 2021-2027, Priorytetu I Fundusze Europejskie dla bardziej konkurencyjnego i inteligentnego Mazowsza, Działanie 1.3 Innowacyjność i konkurencyjność MŚP zwanego dalej „Instrumentem finansowym” jest Bank Gospodarstwa Krajowego z siedzibą w Warszawie przy Al. Jerozolimskich 7, 00-955 Warszawa, zwany dalej „Administratorem”.\nPani/Pana dane osobowe zostały powierzone do przetwarzania przez BGK, Fundacji na rzecz Rozwoju Polskiego Rolnictwa z siedzibą w Warszawie, ul. Gombrowicza 19, 01-682 Warszawa, KRS: 0000143832, www.fdpa.org.pl, zwanej „FDPA”, jako Partnerowi Finansującemu na podstawie Umowy Operacyjnej nr 2/FEMA/1424/2025/II/EFRR/155 oraz Porozumienia w sprawie powierzenia FDPA przetwarzania danych osobowych w związku z realizacją Umowy Operacyjnej.\n2.  Jak i z kim się skontaktować, żeby uzyskać więcej informacji o przetwarzaniu Pani/Pana danych osobowych?\n  Administrator wyznaczył u siebie Inspektora ochrony danych, z którym można się kontaktować  pod adresem e-mail: iod@bgk.pl, lub telefonicznie a także listownie na adres pocztowy siedziby Administratora.\n3.  Skąd mamy Pani/Pana dane osobowe?\n Pani/Pana dane osobowe otrzymaliśmy od Pani/Pana w związku z ubieganiem się przez Panią/a o otrzymanie wsparcia w ramach Instrumentu finansowego, zawarciem i wykonywaniem Umowy pożyczki oraz umów zabezpieczających jej wykonanie zawartych w ramach Instrumentu finansowego.\n4.  Jak przetwarzamy Pani/Pana dane osobowe?\n Administrator przetwarza Pani/Pana dane osobowe w sposób bezpieczny, zgodny z Umową oraz obowiązującymi przepisami prawa. Administrator dokłada wszelkich starań, aby zapewnić wszelkie środki fizycznej, technicznej i organizacyjnej ochrony danych osobowych przed ich przypadkowym czy umyślnym zniszczeniem, przypadkową utratą, zmianą, nieuprawnionym ujawnieniem, wykorzystaniem czy dostępem przez siebie oraz FDPA.\n"]
[null,null,"5.  Jaki jest cel i podstawa prawna przetwarzania Pani/Pana danych osobowych?\n Pani/Pana dane osobowe otrzymane w związku z ubieganiem się, zawarciem i wykonywaniem Umów w ramach Instrumentu finansowego  przetwarzane są przez Administratora w celu:\n1) realizacji Instrumentu finansowego, w szczególności potwierdzenia kwalifikowalności wydatków, udziele-nia wsparcia, ustanowienia zabezpieczeń, monitoringu, ewaluacji, kontroli, audytu i sprawozdawczości na podstawie art. 6 ust. 1 lit. b) oraz lit. c) Rozporządzenia Parlamentu Europejskiego i Rady (UE) 2016/679 z dnia 27 kwietnia 2016 r. w sprawie ochrony osób fizycznych w związku z przetwarzaniem danych oso-bowych i w sprawie swobodnego przepływu takich danych oraz uchylenia dyrektywy 95/46/WE (ogólne rozporządzenie o ochronie danych) (Dz. Urz. UE L 119 z 04.05.2016, str.1), dalej zwanego „RODO”, w związku z przepisami ustawy z dnia 28 kwietnia 2022 r. o zasadach realizacji zadań finansowanych ze środ-ków europejskich w perspektywie finansowej 2021–2027;\n2) realizacji działań informacyjno-promocyjnych w ramach Instrumentu finansowego, a także w celach związanych z odzyskiwaniem środków, celach archiwalnych oraz statystycznych, na podstawie art. 6 ust. 1 lit. f) RODO, tj. realizacji prawnie uzasadnionych interesów administratora polegających na prowadze-niu działalności informacyjnej dot. administratora oraz ustalania i dochodzenia ewentualnych roszczeń wynikających ze współpracy lub obrony przed nimi.\n6. Jak długo będziemy przechowywać Pani/Pana dane osobowe? \nPani/a dane osobowe będą przechowywane przez okres niezbędny do prawidłowego rozliczenia i zamknię-cia Instrumentu finansowego, a także do czasu przedawnienia roszczeń związanych z Pani/a w nim udziale i zaciągniętymi przez Panią/a zobowiązaniami.\n7. Komu udostępniamy Pani/Pana dane osobowe?\n Pani/Pana dane osobowe będą przekazywane: FDPA, Zarządowi Województwa Mazowieckiego , Ministrowi właściwemu ds. rozwoju regionalnego oraz podmiotom, które na zlecenie Administratora i FDPA uczestniczą w realizacji Instrumentu finansowego. Dane osobowe mogą zostać przekazane innym podmiotom wskazanym w art. 89 ust. 1 4.Ustawy z dnia 28 kwietnia 2022 r. o zasadach realizacji zadań finansowanych ze środków europejskich w perspektywie finansowej 2021-2027, w szczególności podmiotom realizującym badania ewaluacyjne oraz kontrole i audyty w ramach Instrumentu finansowego.\n8. Jakie uprawnienia przysługują Pani/Panu wobec Administratora w zakresie przetwarzania danych?\n1) Każdej osobie przysługuje prawo dostępu do swoich danych osobowych, a także prawo do żądania ich sprostowania, usunięcia, przenoszenia oraz ograniczenia przetwarzania. Każdej osobie przysługuje pra-wo wniesienia sprzeciwu wobec przetwarzania danych, zwłaszcza przetwarzania opartego na prawnie uzasadnionym interesie administratora oraz prawo wycofania zgody na przetwarzanie, jeśli zgoda sta-nowi podstawę przetwarzania danych, w każdym czasie, bez wpływu na zgodność z prawem przetwarza-nia dokonanego przed wycofaniem zgody. \n2) Każdej osobie przysługuje prawo wniesienia skargi do Prezesa Urzędu Ochrony Danych Osobowych, w przypadku wątpliwości dotyczących przetwarzania danych osobowych zgodnie z przepisami RODO.\n"]
[null,null,"9. Czy przekazujemy Pani/Pana dane osobowe do państw spoza Europejskiego Obszaru Gospodarczego?\nAdministrator  nie będzie przekazywać  Pani/Pana danych osobowych do państw spoza Europejskiego Obszaru Gospodarczego.\n10. Czy dokonujemy automatycznego podejmowania decyzji (w tym profilowania) w oparciu o Pani/Pana dane osobowe?\nPani/Pana dane osobowe nie podlegają zautomatyzowanemu przetwarzaniu w tym profilowaniu przez Administratora.\n11.  Czy musi Pani/Pan podawać nam swoje dane osobowe?\n Podanie danych jest warunkiem rozpatrzenia możliwości otrzymania wsparcia, a odmowa ich podania jest równoznaczna z brakiem możliwości udzielenia wsparcia w ramach Instrumentu finansowego.\nNa Pani/u jako osobie ubiegającej się o udzielenie wsparcia spoczywa obowiązek poinformowania o treści niniejszej informacji wszystkich osób, których dane podaje dla celów uzyskania wsparcia, w szczególności ustanowienia zabezpieczeń.\n"]
[null,null,"   ________________________________________________________________________                                                         ",null,null,null,"   ________________________________________________________________________                                                         "]
[null,null,"Miejscowość/ data                                                 ",null,null,null,"Podpis Wnioskodawcy                                                           "]
[]
[null,null,"Dane osobowe zweryfikowano. Kompletny wniosek pożyczkowy z wymaganymi załącznikami wpłynął w dniu:       ",null,null,null,null,"_______________________________________________"]
[null,null,null,null,null,null,null," Data i podpis oficera pożyczkowego"]
[]
[null,null,"EOF"]

{"sheet":"ArkSlownie","index":1,"n_rows":41,"n_cols":26,"rows_kept":41,"cut":false,"hidden":true,"merged":[]}
[null,null,{"$f":"MOD(1,10)","v":1},null,null,null,null,null,null,{"$f":"IF(QUOTIENT(F27,10^1)<1,LOOKUP(G31,Q2:Q2:R41), IF(MOD(F27,10)>0, LOOKUP(G31,Q2:Q2:R41),\" \" ))","v":""},null,null,null,null,null,null,"liczebniki","słownie"]
[null,null,null,null,null,null,null,null,null,null,null,null,null,null,null,null,0,""]
[null,null,null,null,null,null,null,null,null,null,null,null,null,null,null,null,1,"jeden"]
[null,null,null,null,null,null,null,null,null,null,null,null,null,null,null,null,2,"dwa"]
[null,null,null,null,null,null,null,null,null,null,null,null,null,null,null,null,3,"trzy",11,"jedenaście",null,20,"dwadzieścia",null,100,"sto"]
[null,null,null,null,null,null,null,null,null,null,null,null,null,null,null,null,4,"cztery",12,"dwanaście",null,30,"trzydzieści",null,200,"dwieśćie"]
[null,"Miliony","Tysiace","setki",null,null,null,null,null,null,null,null,null,null,null,null,5,"pięć",13,"trzynaście",null,40,"czterdzieści",null,300,"trzysta"]
[null,null,null,null,null,null,null,null,null,null,null,null,null,null,null,null,6,"sześć",14,"czternaście",null,50,"pięćdziesiąt",null,400,"czterysta"]
[null,null,null,null,null,null,null,null,null,null,null,null,null,null,null,null,7,"siedem",15,"piętnaście",null,60,"sześćdziesiąt",null,500,"pięćset"]
[{"$f":"Wniosek!D8","v":0},{"$f":"QUOTIENT(A10,10^6)","v":0},{"$f":"(MOD(A10,10^6)-MOD(A10,10^3))/10^3","v":0},{"$f":"MOD(A10,10^3)","v":0},null,null,null,null,null,null,null,null,null,null,null,null,8,"osiem",16,"szesnaście",null,70,"siedemdziesiąt",null,600,"sześćset"]
[null,null,null,null,null,"10^2","10^1",1,null,null,{"$f":"D27","v":0},{"$f":"QUOTIENT(K11,10^2)","v":0},{"$f":"MOD(K11,10^2)","v":0},null,null,null,9,"dziewięć",17,"siedemnaście",null,80,"osiemdziesiąt",null,700,"siedemset"]
[null,null,null,null,null,null,null,null,null,null,null,null,{"$f":"QUOTIENT(M11,10^1)","v":0},{"$f":"M11-M12*10^1","v":0},null,null,10,"dziesięć",18,"osiemaście",null,90,"dziewięćdziesiąt",null,800,"osiemset"]
[null,{"$f":"B10","v":0},{"$f":"QUOTIENT(B13,10^2)","v":0},{"$f":"MOD(B13,10^2)","v":0},null,null,null,null,null,null,null,"10^2",null,null,null,null,11,"jedenaście",19,"dziewiętnaście",null,null,null,null,900,"dziewięćset"]
[null,null,"setki",{"$f":"QUOTIENT(D13,10^1)","v":0},{"$f":"D13-D14*10^1","v":0},null,null,null,null,null,null,"setki","dziesiatki","jednosci",null,null,12,"dwanaście"]
[null,null,null,null,null,null,null,null,null,null,null,{"$f":"L11*10^2","v":0},{"$f":"M12*10^1","v":0},{"$f":"N12*10^0","v":0},null,null,13,"trzynaście"]
[null,null,null,null,null,null,null,null,null,null,null,{"$f":"LOOKUP(L15,Q2:Q2:R41)","v":""},{"$f":"IF(M12=0,\"\", LOOKUP(M11,Q2:Q2:R41))","v":""},{"$f":"IF(F27>20,LOOKUP(N12, Q2:Q2:R41),\"n\")","v":"n"},null,null,14,"czternaście"]
[null,null,{"$f":"C13*10^2","v":0},{"$f":"D14*10^1","v":0},{"$f":"E14*10^0","v":0},null,null,null,null,null,null,null,null,null,null,null,15,"piętnaście"]
[null,null,{"$f":"LOOKUP(C17,Q2:Q2:R41)","v":""},{"$f":"IF(D17=0,\"\", LOOKUP(D17,Q2:Q2:R41))","v":""},{"$f":"LOOKUP(E17, Q2:Q2:R41)","v":""},{"$f":"IF(B13=0, \" \", (IF(D13<2,\"milion\", IF( D13<5,\"miliony\",\"milionów\" ) )) )","v":" "},null,null,null,"Słownie: ",null,null,null,null,null,null,16,"szesnaście"]
[null,null,null,null,null,null,null,null,null,null,null,null,null,null,null,null,17,"siedemnaście"]
[null,null,{"$f":"C10","v":0},{"$f":"QUOTIENT(C20,10^2)","v":0},{"$f":"MOD(C20,10^2)","v":0},null,null,null,null,null,null,null,null,null,null,null,18,"osiemaście"]
[null,null,null,null,{"$f":"QUOTIENT(E20,10^1)","v":0},{"$f":"E20-E21*10^1","v":0},null,null,null,null,null,null,null,null,null,null,19,"dziewiętnaście"]
[null,null,null,null,null,null,null,null,null,null,null,null,null,null,null,null,20,"dwadzieścia"]
[null,null,null,null,null,null,null,null,null,null,null,null,null,null,null,null,30,"trzydzieści"]
[null,null,null,{"$f":"D20*10^2","v":0},{"$f":"E21*10^1","v":0},{"$f":"F21*10^0","v":0},null,null,null,null,null,null,null,null,null,null,40,"czterdzieści"]
[null,null,null,{"$f":"LOOKUP(D24,Q2:Q2:R41)","v":""},{"$f":"IF(E24=0,\"\", LOOKUP(E20,Q2:Q2:R41))","v":""},{"$f":"IF(E20>20,LOOKUP(F21, Q2:Q2:R41), IF(E20<10, LOOKUP(F21, Q2:Q2:R41),  \" \"))","v":""},{"$f":"IF(E20=0,IF(D20>0,\"tysięcy\",\" \"),IF(E20=1,\"tysiąc\",IF(E20<5,\"tysiące\",\"tysięcy\")))","v":" "},null,null,null,null,null,null,null,null,null,50,"pięćdziesiąt"]
[null,null,null,null,null,null,null,null,null,null,null,null,null,null,null,null,60,"sześćdziesiąt"]
[null,null,null,{"$f":"D10","v":0},{"$f":"QUOTIENT(D27,10^2)","v":0},{"$f":"MOD(D27,10^2)","v":0},null,null,null,null,null,null,null,null,null,null,70,"siedemdziesiąt"]
[null,null,null,null,"setki",{"$f":"QUOTIENT(F27,10^1)","v":0},{"$f":"F27-F28*10^1","v":0},null,null,null,null,null,null,null,null,null,80,"osiemdziesiąt"]
[null,null,null,null,null,null,null,null,null,null,null,null,null,null,null,null,90,"dziewięćdziesiąt"]
[null,null,null,null,null,null,null,null,null,null,null,null,null,null,null,null,100,"sto"]
[null,null,null,null,{"$f":"E27*10^2","v":0},{"$f":"F28*10^1","v":0},{"$f":"G28*10^0","v":0},null,null,null,null,null,null,null,null,null,200,"dwieśćie"]
[null,null,null,null,{"$f":"LOOKUP(E31,Q2:Q2:R41)","v":""},{"$f":"IF(F28=0,\"\", LOOKUP(M11,Q2:Q2:R41))","v":""},{"$f":"IF(F27>20,LOOKUP(G28, Q2:Q2:R41), IF(F27<10, LOOKUP(G28, Q2:Q2:R41),  \" \"))","v":""},null,null,null,null,null,null,null,null,null,300,"trzysta"]
[null,null,null,null,null,null,null,null,null,null,null,null,null,null,null,null,400,"czterysta"]
[null,null,null,null,null,null,null,null,null,"Słownie złotych: ",{"$f":"IF(B10>0,C18&\" \"&D18&\" \"&E18&\" \"&F18& \" \", \" \")","v":" "},null,null,null,null,null,500,"pięćset"]
[null,null,null,null,null,null,null,null,null,null,{"$f":"IF( C10>0,(D25&\" \"&E25&\" \"&F25&\" \"&G25), \" \")","v":" "},null,null,null,null,null,600,"sześćset"]
[null,null,null,null,null,null,null,null,null,null,{"$f":"IF(A10>999999999, \"Przekroczony zakres!\",\"Słownie zł: \"&K34&\" \"&K35&\" \" &E32&\" \"&F32&\" \"&H32&\" \"&G32)","v":"Słownie zł:        "},"zł",null,null,null,null,700,"siedemset"]
[null,null,null,null,null,null,null,null,null,null,null,null,null,null,null,null,800,"osiemset"]
[null,null,null,null,null,null,null,null,null,null,null,null,null,null,null,null,900,"dziewięćset"]
[null,null,null,null,null,null,null,null,null,null,null,null,null,null,null,null,1000,"tysiąc"]
[null,null,null,null,null,null,null,null,null,null,null,null,null,null,null,null,2000,"dwa tysiące"]
[null,null,null,null,null,null,null,null,null,null,null,null,null,null,null,null,3000,"tysiące"]

{"sheet":"Slownik","index":2,"n_rows":12,"n_cols":5,"rows_kept":12,"cut":false,"hidden":true,"merged":[]}
["Miasto","Biuro","Pracownik",null,"Stan cywilny"]
["Warszawa","Płock","Maria Lemanowicz-Owsik",null,"zamężna / żonaty"]
["Siedlce","Płock","Justyna Szymańska",null,"panna / kawaler"]
["Płock","Połczyn Zdrój","Małgorzata Kubiak",null,"wdowa / wdowiec"]
["Połczyn Zdrój","Połczyn Zdrój","Irena Domitrz",null,"rozwiedziona / rozwiedziony"]
["Radom","Radom","Witold Makulski",null,"w separacji"]
["Nowy Sącz","Radom","Aneta Kibler"]
[null,"Siedlce","Katarzyna Bułakowska"]
[null,"Siedlce","Anna Wielogórska"]
[null,"Warszawa","Monika Mondzelewska"]
[null,"Nowy Sącz","Elżbieta Petryla"]
[null,"Nowy Sącz","Łukasz Pasiut"]

{"sheet":"Dane","index":3,"n_rows":442,"n_cols":15,"rows_kept":442,"cut":false,"hidden":true,"merged":[[0,3,4,7]]}
["program",5,null,"uwaga, w tej zakładce nie wolno wstawiać nowych wierszy - to spowoduje zniszczenie wszystkich formuł - odwołań do arkusza Wniosek !! - nowe tylko na końcu !!",null,null,null,null,null,null,null,null,null,"wersja wniosku","1.49"]
["priorytet","b"]
["wnioskowanaKwota",{"$f":"Wniosek!D8","v":0}]
["okresKredytowaniaWms",{"$f":"Wniosek!D9","v":0}]
["wnioskowanyOkresKarencji",{"$f":"Wniosek!I9","v":0}]
["opisCeluPozyczki",{"$f":"Wniosek!D10","v":0}]
["miejsceInwestycjiWgPowiatu",{"$f":"Wniosek!D11","v":0}]
["odddzialID",1]
["imieInazwiskoOficera"]
["nazwisko",{"$f":"Wniosek!D33","v":0}]
["imie",{"$f":"Wniosek!D34","v":0}]
["seriaINrDo",{"$f":"Wniosek!#REF!","v":{"$error":"#REF!"}}]
["doWydanyPrzez",{"$f":"Wniosek!#REF!","v":{"$error":"#REF!"}}]
["nrPesel",{"$f":"Wniosek!D38","v":0}]
["nrNip",{"$f":"Wniosek!H38","v":0}]
["stanCywilny",{"$f":"Wniosek!#REF!","v":{"$error":"#REF!"}}]
["imieINaziwskoWspolmalzonka",{"$f":"Wniosek!#REF!","v":{"$error":"#REF!"}}]
["adresZamieszkaniaUlica",{"$f":"Wniosek!F39","v":0}]
["kodPocztowy",{"$f":"Wniosek!D40","v":0}]
["miejscowosc",{"$f":"Wniosek!H40","v":0}]
["miejscowoscRodzaj",3]
["adresKorespondencyjnyNrMieszkania",{"$f":"Wniosek!J42","v":0}]
["kodPocztowyKorespondencyjny",{"$f":"Wniosek!D43","v":0}]
["miejscowoscKorespondencyjny",{"$f":"Wniosek!H43","v":0}]
["telefon1",{"$f":"Wniosek!D44","v":0}]
["telefon2",{"$f":"Wniosek!H44","v":0}]
["email",{"$f":"Wniosek!D45","v":0}]
["www",{"$f":"Wniosek!H45","v":0}]
["wyksztalcenie",{"$f":"Wniosek!D46","v":0}]
["kwalfikacjeIUprawnienia",{"$f":"Wniosek!#REF!","v":{"$error":"#REF!"}}]
["adresZamieszkaniaNrMiekszania",{"$f":"Wniosek!J39","v":0}]
["adresZamieszkaniaNrDomu",{"$f":"Wniosek!F39","v":0}]
["nazwaZakladuPracy",{"$f":"Wniosek!#REF!","v":{"$error":"#REF!"}}]
["okresOdDo",{"$f":"Wniosek!#REF!","v":{"$error":"#REF!"}}]
["stanowisko",{"$f":"Wniosek!#REF!","v":{"$error":"#REF!"}}]
["nazwaZakladuPracyWspolmalzonek",{"$f":"Wniosek!#REF!","v":{"$error":"#REF!"}}]
["okresOdDoWspolmalzonek",{"$f":"Wniosek!#REF!","v":{"$error":"#REF!"}}]
["stanowiskoWspolmalzonek",{"$f":"Wniosek!#REF!","v":{"$error":"#REF!"}}]
["oficerPozyczkowy","",61]
["osoby pozostajace we wspolnym"]
["nazwiskoIImie1",{"$f":"Wniosek!#REF!","v":{"$error":"#REF!"}}]
["wiek1",{"$f":"Wniosek!#REF!","v":{"$error":"#REF!"}}]
["stopienPokrewienstwa1",{"$f":"Wniosek!#REF!","v":{"$error":"#REF!"}}]
["miesiecznyDochodNetto1",{"$f":"Wniosek!#REF!","v":{"$error":"#REF!"}}]
["nazwiskoIImie2",{"$f":"Wniosek!#REF!","v":{"$error":"#REF!"}}]
["wiek2",{"$f":"Wniosek!#REF!","v":{"$error":"#REF!"}}]
["stopienPokrewienstwa2",{"$f":"Wniosek!#REF!","v":{"$error":"#REF!"}}]
["miesiecznyDochodNetto2",{"$f":"Wniosek!#REF!","v":{"$error":"#REF!"}}]
["nazwiskoIImie3",{"$f":"Wniosek!#REF!","v":{"$error":"#REF!"}}]
["wiek3",{"$f":"Wniosek!#REF!","v":{"$error":"#REF!"}}]
["stopienPokrewienstwa3",{"$f":"Wniosek!#REF!","v":{"$error":"#REF!"}}]
["miesiecznyDochodNetto3",{"$f":"Wniosek!#REF!","v":{"$error":"#REF!"}}]
["nazwiskoIImie4",{"$f":"Wniosek!#REF!","v":{"$error":"#REF!"}}]
["wiek4",{"$f":"Wniosek!#REF!","v":{"$error":"#REF!"}}]
["stopienPokrewienstwa4",{"$f":"Wniosek!#REF!","v":{"$error":"#REF!"}}]
["miesiecznyDochodNetto4",{"$f":"Wniosek!#REF!","v":{"$error":"#REF!"}}]
["informacjaOStostunkachMajatkowych",3]
["pozyczkiOdFdpaLiczba",{"$f":"Wniosek!I47","v":0}]
["pozyczkiOdFdpaAtrybut",{"$f":"IF(B58=0,\"pierwsza\",\"następna\")","v":"pierwsza"}]
["siedzibaFirmyMiasto",{"$f":"Wniosek!#REF!","v":{"$error":"#REF!"}}]
["siedzibaFirmyKod",{"$f":"Wniosek!#REF!","v":{"$error":"#REF!"}}]
["nazwaFirmy",{"$f":"Wniosek!#REF!","v":{"$error":"#REF!"}}]
["siedzibaFirmyUlica",{"$f":"Wniosek!#REF!","v":{"$error":"#REF!"}}]
["dataRozpoczeciaDzialalnosci",{"$f":"Wniosek!#REF!","v":{"$error":"#REF!"}}]
["okresOstatniegoZawieszenia",{"$f":"Wniosek!#REF!","v":{"$error":"#REF!"}}]
["numerRegon",{"$f":"Wniosek!#REF!","v":{"$error":"#REF!"}}]
["glownyKodPKD",{"$f":"Wniosek!#REF!","v":{"$error":"#REF!"}}]
["rodzajDzialalnosci",{"$f":"Wniosek!#REF!","v":{"$error":"#REF!"}}]
["opisDzialanosci",{"$f":"Wniosek!#REF!","v":{"$error":"#REF!"}}]
["formaPrawna",1]
["formaRozliczenUS",2]
["liczbaZatrudnionychRok1",{"$f":"Wniosek!#REF!","v":{"$error":"#REF!"}}]
["liczbaZatrudnionychRok2",{"$f":"Wniosek!#REF!","v":{"$error":"#REF!"}}]
["liczbaZatrudnionychRok3",{"$f":"Wniosek!#REF!","v":{"$error":"#REF!"}}]
["liczbaZatrudnionych1",{"$f":"Wniosek!#REF!","v":{"$error":"#REF!"}}]
["liczbaZatrudnionych2",{"$f":"Wniosek!#REF!","v":{"$error":"#REF!"}}]
["liczbaZatrudnionych3",{"$f":"Wniosek!#REF!","v":{"$error":"#REF!"}}]
["liczbaZatrudnionychKobiety",{"$f":"Wniosek!#REF!","v":{"$error":"#REF!"}}]
["liczbaZatrudnionychMężczyźni",{"$f":"Wniosek!#REF!","v":{"$error":"#REF!"}}]
["liczbaZatrudnionychObszaryWiejskie",{"$f":"Wniosek!#REF!","v":{"$error":"#REF!"}}]
["obrotNettoRok1",{"$f":"Wniosek!#REF!","v":{"$error":"#REF!"}}]
["obrotNettoRok2",{"$f":"Wniosek!#REF!","v":{"$error":"#REF!"}}]
["obrotNettoRok3",{"$f":"Wniosek!#REF!","v":{"$error":"#REF!"}}]
["sumaAktywówRok1",{"$f":"Wniosek!#REF!","v":{"$error":"#REF!"}}]
["sumaAktywówRok2",{"$f":"Wniosek!#REF!","v":{"$error":"#REF!"}}]
["sumaAktywówRok3",{"$f":"Wniosek!#REF!","v":{"$error":"#REF!"}}]
["planowanaLiczbaZatrudnionych",{"$f":"Wniosek!#REF!","v":{"$error":"#REF!"}}]
["typPrzedsiebiorstwa",3]
["statusPrzedsiebiorstwa","średni"]
["planowanaLiczbaNowychMiejscPracy",{"$f":"Wniosek!#REF!","v":{"$error":"#REF!"}}]
["nrRachunkuBankowego",{"$f":"Wniosek!#REF!","v":{"$error":"#REF!"}}]
["nazwaRachunkuBankowego",{"$f":"Wniosek!#REF!","v":{"$error":"#REF!"}}]
["opisProwadzonejDzialanosci",{"$f":"Wniosek!C51","v":0}]
["daneDotyczaceProduktow",{"$f":"Wniosek!C62","v":0}]
["podstawaPlanowaniaSprzedazy",{"$f":"Wniosek!C64","v":0}]
[]
[]
["Ocena rynku"]
["glowniOdbiorcyNazwa1",{"$f":"Wniosek!C70","v":0}]
["glowniOdbiorcyUdzial1",{"$f":"Wniosek!E70","v":0}]
["glowniOdbiorcyTerminZaplaty1",{"$f":"Wniosek!H70","v":0}]
["glowniOdbiorcyNazwa2",{"$f":"Wniosek!C71","v":0}]
["glowniOdbiorcyUdzial2",{"$f":"Wniosek!E71","v":0}]
["glowniOdbiorcyTerminZaplaty2",{"$f":"Wniosek!H71","v":0}]
["glowniOdbiorcyNazwa3",{"$f":"Wniosek!C72","v":0}]
["glowniOdbiorcyUdzial3",{"$f":"Wniosek!E72","v":0}]
["glowniOdbiorcyTerminZaplaty3",{"$f":"Wniosek!H72","v":0}]
["glowniDostawcyTowarowNazwa1",{"$f":"Wniosek!C75","v":0}]
["glowniDostawcyTowarowUdzial1",{"$f":"Wniosek!E75","v":0}]
["glowniDostawcyTowarowTerminZaplaty1",{"$f":"Wniosek!H75","v":0}]
["glowniDostawcyTowarowNazwa2",{"$f":"Wniosek!C76","v":0}]
["glowniDostawcyTowarowUdzial2",{"$f":"Wniosek!E76","v":0}]
["glowniDostawcyTowarowTerminZaplaty2",{"$f":"Wniosek!H76","v":0}]
["glowniDostawcyTowarowNazwa3",{"$f":"Wniosek!C77","v":0}]
["glowniDostawcyTowarowUdzial3",{"$f":"Wniosek!E77","v":0}]
["glowniDostawcyTowarowTerminZaplaty3",{"$f":"Wniosek!H77","v":0}]
["umowyDostawcyOdbiorcyNazwa1",{"$f":"Wniosek!C80","v":0}]
["umowyDostawcyOdbiorcyWartosc1",{"$f":"Wniosek!E80","v":0}]
["umowyDostawcyOdbiorcyOkresUmowy1",{"$f":"Wniosek!H80","v":0}]
["umowyDostawcyOdbiorcyNazwa2",{"$f":"Wniosek!C81","v":0}]
["umowyDostawcyOdbiorcyWartosc2",{"$f":"Wniosek!E81","v":0}]
["umowyDostawcyOdbiorcyOkresUmowy2",{"$f":"Wniosek!H81","v":0}]
["umowyDostawcyOdbiorcyNazwa3",{"$f":"Wniosek!C82","v":0}]
["umowyDostawcyOdbiorcyWartosc3",{"$f":"Wniosek!E82","v":0}]
["umowyDostawcyOdbiorcyOkresUmowy3",{"$f":"Wniosek!H82","v":0}]
["zasiegRynkuPoczatkowo1",{"$f":"Wniosek!C85","v":0}]
["zasiegRynkuDocelowo1",{"$f":"Wniosek!E85","v":0}]
["zasiegRynkuPoczatkowo2",{"$f":"Wniosek!C86","v":0}]
["zasiegRynkuDocelowo2",{"$f":"Wniosek!E86","v":0}]
["zasiegRynkuPoczatkowo3",{"$f":"Wniosek!#REF!","v":{"$error":"#REF!"}}]
["zasiegRynkuDocelowo3",{"$f":"Wniosek!#REF!","v":{"$error":"#REF!"}}]
["sezonowoscPopytu",{"$f":"Wniosek!C88","v":0}]
["konkurentNazwa1",{"$f":"Wniosek!C91","v":0}]
["konkurentSilneStrony1",{"$f":"Wniosek!D91","v":0}]
["konkurentSlabeStrony1",{"$f":"Wniosek!H91","v":0}]
["konkurentNazwa2",{"$f":"Wniosek!C92","v":0}]
["konkurentSilneStrony2",{"$f":"Wniosek!D92","v":0}]
["konkurentSlabeStrony2",{"$f":"Wniosek!H92","v":0}]
["konkurentNazwa3",{"$f":"Wniosek!C93","v":0}]
["konkurentSilneStrony3",{"$f":"Wniosek!D93","v":0}]
["konkurentSlabeStrony3",{"$f":"Wniosek!H93","v":0}]
["mozliwoscZmianyProdukcji",{"$f":"Wniosek!#REF!","v":{"$error":"#REF!"}}]
[]
["Opis środków stałych",{"$f":"Wniosek!#REF!","v":{"$error":"#REF!"}}]
["gruntyNrKsiegi1",{"$f":"Wniosek!#REF!","v":{"$error":"#REF!"}}]
["gruntyLokalizacja1",{"$f":"Wniosek!#REF!","v":{"$error":"#REF!"}}]
["gruntyPowierzchnia1",{"$f":"Wniosek!#REF!","v":{"$error":"#REF!"}}]
["gruntyUstanowionaHipoteka1",{"$f":"Wniosek!#REF!","v":{"$error":"#REF!"}}]
["gruntyAktualnaWartosc1",{"$f":"Wniosek!#REF!","v":{"$error":"#REF!"}}]
["gruntyNrKsiegi2",{"$f":"Wniosek!#REF!","v":{"$error":"#REF!"}}]
["gruntyLokalizacja2",{"$f":"Wniosek!#REF!","v":{"$error":"#REF!"}}]
["gruntyPowierzchnia2",{"$f":"Wniosek!#REF!","v":{"$error":"#REF!"}}]
["gruntyUstanowionaHipoteka2",{"$f":"Wniosek!#REF!","v":{"$error":"#REF!"}}]
["gruntyAktualnaWartosc2",{"$f":"Wniosek!#REF!","v":{"$error":"#REF!"}}]
["gruntyNrKsiegi3",{"$f":"Wniosek!#REF!","v":{"$error":"#REF!"}}]
["gruntyLokalizacja3",{"$f":"Wniosek!#REF!","v":{"$error":"#REF!"}}]
["gruntyPowierzchnia3",{"$f":"Wniosek!#REF!","v":{"$error":"#REF!"}}]
["gruntyUstanowionaHipoteka3",{"$f":"Wniosek!#REF!","v":{"$error":"#REF!"}}]
["gruntyAktualnaWartosc3",{"$f":"Wniosek!#REF!","v":{"$error":"#REF!"}}]
["gruntyWartoscOgolem",{"$f":"Wniosek!J102","v":0}]
["budynkiNrKsiegi1",{"$f":"Wniosek!#REF!","v":{"$error":"#REF!"}}]
["budynkiRokBudowy1",{"$f":"Wniosek!#REF!","v":{"$error":"#REF!"}}]
["budynkiWartoscPolisy1",{"$f":"Wniosek!#REF!","v":{"$error":"#REF!"}}]
["budynkiDataWaznosciPolisy1",{"$f":"Wniosek!#REF!","v":{"$error":"#REF!"}}]
["budynkiUstanowionaHipoteka1",{"$f":"Wniosek!#REF!","v":{"$error":"#REF!"}}]
["budynkiAktualnaWartosc1",{"$f":"Wniosek!#REF!","v":{"$error":"#REF!"}}]
["budynkiNrKsiegi2",{"$f":"Wniosek!#REF!","v":{"$error":"#REF!"}}]
["budynkiRokBudowy2",{"$f":"Wniosek!#REF!","v":{"$error":"#REF!"}}]
["budynkiWartoscPolisy2",{"$f":"Wniosek!#REF!","v":{"$error":"#REF!"}}]
["budynkiDataWaznosciPolisy2",{"$f":"Wniosek!#REF!","v":{"$error":"#REF!"}}]
["budynkiUstanowionaHipoteka2",{"$f":"Wniosek!#REF!","v":{"$error":"#REF!"}}]
["budynkiAktualnaWartosc2",{"$f":"Wniosek!#REF!","v":{"$error":"#REF!"}}]
["budynkiNrKsiegi3",{"$f":"Wniosek!#REF!","v":{"$error":"#REF!"}}]
["budynkiRokBudowy3",{"$f":"Wniosek!#REF!","v":{"$error":"#REF!"}}]
["budynkiWartoscPolisy3",{"$f":"Wniosek!#REF!","v":{"$error":"#REF!"}}]
["budynkiDataWaznosciPolisy3",{"$f":"Wniosek!#REF!","v":{"$error":"#REF!"}}]
["budynkiUstanowionaHipoteka3",{"$f":"Wniosek!#REF!","v":{"$error":"#REF!"}}]
["budynkiAktualnaWartosc3",{"$f":"Wniosek!#REF!","v":{"$error":"#REF!"}}]
["budynkiWartoscOgolem",{"$f":"Wniosek!J106","v":0}]
["wyposazenieCechy1",{"$f":"Wniosek!C109","v":0}]
["wyposazenieRokProdukcji1",{"$f":"Wniosek!E109","v":0}]
["wyposazenieWartoscPolisy1",{"$f":"Wniosek!F109","v":0}]
["wyposazenieDataWaznosciPolisy1",{"$f":"Wniosek!H109","v":0}]
["wyposazenieUstanowione1",{"$f":"Wniosek!I109","v":"Tak"}]
["wyposazenieAktualnaWartosc1",{"$f":"Wniosek!J109","v":0}]
["wyposazenieCechy2",{"$f":"Wniosek!#REF!","v":{"$error":"#REF!"}}]
["wyposazenieRokProdukcji2",{"$f":"Wniosek!#REF!","v":{"$error":"#REF!"}}]
["wyposazenieWartoscPolisy2",{"$f":"Wniosek!#REF!","v":{"$error":"#REF!"}}]
["wyposazenieDataWaznosciPolisy2",{"$f":"Wniosek!#REF!","v":{"$error":"#REF!"}}]
["wyposazenieUstanowione2",{"$f":"Wniosek!#REF!","v":{"$error":"#REF!"}}]
["wyposazenieAktualnaWartosc2",{"$f":"Wniosek!#REF!","v":{"$error":"#REF!"}}]
["wyposazenieCechy3",{"$f":"Wniosek!#REF!","v":{"$error":"#REF!"}}]
["wyposazenieRokProdukcji3",{"$f":"Wniosek!#REF!","v":{"$error":"#REF!"}}]
["wyposazenieWartoscPolisy3",{"$f":"Wniosek!#REF!","v":{"$error":"#REF!"}}]
["wyposazenieDataWaznosciPolisy3",{"$f":"Wniosek!#REF!","v":{"$error":"#REF!"}}]
["wyposazenieUstanowione3",{"$f":"Wniosek!#REF!","v":{"$error":"#REF!"}}]
["wyposazenieAktualnaWartosc3",{"$f":"Wniosek!#REF!","v":{"$error":"#REF!"}}]
["wyposazenieCechy4",{"$f":"Wniosek!#REF!","v":{"$error":"#REF!"}}]
["wyposazenieRokProdukcji4",{"$f":"Wniosek!#REF!","v":{"$error":"#REF!"}}]
["wyposazenieWartoscPolisy4",{"$f":"Wniosek!#REF!","v":{"$error":"#REF!"}}]
["wyposazenieDataWaznosciPolisy4",{"$f":"Wniosek!#REF!","v":{"$error":"#REF!"}}]
["wyposazenieUstanowione4",{"$f":"Wniosek!#REF!","v":{"$error":"#REF!"}}]
["wyposazenieAktualnaWartosc4",{"$f":"Wniosek!#REF!","v":{"$error":"#REF!"}}]
["wyposazenieCechy5",{"$f":"Wniosek!#REF!","v":{"$error":"#REF!"}}]
["wyposazenieRokProdukcji5",{"$f":"Wniosek!#REF!","v":{"$error":"#REF!"}}]
["wyposazenieWartoscPolisy5",{"$f":"Wniosek!#REF!","v":{"$error":"#REF!"}}]
["wyposazenieDataWaznosciPolisy5",{"$f":"Wniosek!#REF!","v":{"$error":"#REF!"}}]
["wyposazenieUstanowione5",{"$f":"Wniosek!#REF!","v":{"$error":"#REF!"}}]
["wyposazenieAktualnaWartosc5",{"$f":"Wniosek!#REF!","v":{"$error":"#REF!"}}]
["wyposazenieWartoscOgolem",{"$f":"Wniosek!J110","v":0}]
["srodkiTransportuMarka1",{"$f":"Wniosek!C113","v":0}]
["srodkiTransportuRokProdukcji1",{"$f":"Wniosek!E113","v":0}]
["srodkiTransportuWartoscPolisy1",{"$f":"Wniosek!F113","v":0}]
["srodkiTransportuDataWaznosciPolisy1",{"$f":"Wniosek!H113","v":0}]
["srodkiTransportuUstanowione1",{"$f":"Wniosek!I113","v":0}]
["srodkiTransportuAktualnaWartosc1",{"$f":"Wniosek!#REF!","v":{"$error":"#REF!"}}]
["srodkiTransportuMarka2",{"$f":"Wniosek!#REF!","v":{"$error":"#REF!"}}]
["srodkiTransportuRokProdukcji2",{"$f":"Wniosek!#REF!","v":{"$error":"#REF!"}}]
["srodkiTransportuWartoscPolisy2",{"$f":"Wniosek!#REF!","v":{"$error":"#REF!"}}]
["srodkiTransportuDataWaznosciPolisy2",{"$f":"Wniosek!#REF!","v":{"$error":"#REF!"}}]
["srodkiTransportuUstanowione2",{"$f":"Wniosek!#REF!","v":{"$error":"#REF!"}}]
["srodkiTransportuAktualnaWartosc2",{"$f":"Wniosek!#REF!","v":{"$error":"#REF!"}}]
["srodkiTransportuMarka3",{"$f":"Wniosek!#REF!","v":{"$error":"#REF!"}}]
["srodkiTransportuRokProdukcji3",{"$f":"Wniosek!#REF!","v":{"$error":"#REF!"}}]
["srodkiTransportuWartoscPolisy3",{"$f":"Wniosek!#REF!","v":{"$error":"#REF!"}}]
["srodkiTransportuDataWaznosciPolisy3",{"$f":"Wniosek!#REF!","v":{"$error":"#REF!"}}]
["srodkiTransportuUstanowione3",{"$f":"Wniosek!#REF!","v":{"$error":"#REF!"}}]
["srodkiTransportuAktualnaWartosc3",{"$f":"Wniosek!J114","v":0}]
["srodkiTransportuWartoscOgolem",{"$f":"Wniosek!J114","v":0}]
["inneAktywa1",{"$f":"Wniosek!C117","v":0}]
["inneAktywaRokProdukcji1",{"$f":"Wniosek!E117","v":0}]
["inneAktywaWartoscPolisy1",{"$f":"Wniosek!F117","v":0}]
["inneAktywaDataWaznosciPolisy1",{"$f":"Wniosek!H117","v":0}]
["inneAktywaUstanowione1",{"$f":"Wniosek!I117","v":0}]
["inneAktywaAktualnaWartosc1",{"$f":"Wniosek!#REF!","v":{"$error":"#REF!"}}]
["inneAktywa2",{"$f":"Wniosek!#REF!","v":{"$error":"#REF!"}}]
["inneAktywaRokProdukcji2",{"$f":"Wniosek!#REF!","v":{"$error":"#REF!"}}]
["inneAktywaWartoscPolisy2",{"$f":"Wniosek!#REF!","v":{"$error":"#REF!"}}]
["inneAktywaDataWaznosciPolisy2",{"$f":"Wniosek!#REF!","v":{"$error":"#REF!"}}]
["inneAktywaUstanowione2",{"$f":"Wniosek!#REF!","v":{"$error":"#REF!"}}]
["inneAktywaAktualnaWartosc2",{"$f":"Wniosek!#REF!","v":{"$error":"#REF!"}}]
["inneAktywa3",{"$f":"Wniosek!#REF!","v":{"$error":"#REF!"}}]
["inneAktywaRokProdukcji3",{"$f":"Wniosek!#REF!","v":{"$error":"#REF!"}}]
["inneAktywaWartoscPolisy3",{"$f":"Wniosek!#REF!","v":{"$error":"#REF!"}}]
["inneAktywaDataWaznosciPolisy3",{"$f":"Wniosek!#REF!","v":{"$error":"#REF!"}}]
["inneAktywaUstanowione3",{"$f":"Wniosek!#REF!","v":{"$error":"#REF!"}}]
["inneAktywaAktualnaWartosc3",{"$f":"Wniosek!J118","v":0}]
["inneAktywaWartoscOgolem",{"$f":"Wniosek!J118","v":0}]
[]
[]
["Opis środków obrotowych"]
["zapasyProdukcyjneSurowceInne",{"$f":"Wniosek!D122","v":0}]
["zapasyProdukcyjneSurowceWartosc",{"$f":"Wniosek!J122","v":0}]
["zapasyProdukcyjneProdukcjaWTokuInne",{"$f":"Wniosek!D123","v":0}]
["zapasyProdukcyjneProdukcjaWTokuWartosc",{"$f":"Wniosek!J123","v":0}]
["zapasyProdukcyjneWyrobyGotoweInne",{"$f":"Wniosek!D124","v":0}]
["zapasyProdukcyjneWyrobyGotoweWartosc",{"$f":"Wniosek!J124","v":0}]
["zapasyProdukcyjneWartoscOgolem",{"$f":"Wniosek!J125","v":0}]
["naleznosciNazwaDluznika1",{"$f":"Wniosek!#REF!","v":{"$error":"#REF!"}}]
["naleznosciAdres1",{"$f":"Wniosek!#REF!","v":{"$error":"#REF!"}}]
["naleznosciRodzaj1",{"$f":"Wniosek!#REF!","v":{"$error":"#REF!"}}]
["naleznoscTerminZaplaty1",{"$f":"Wniosek!#REF!","v":{"$error":"#REF!"}}]
["naleznoscKwota1",{"$f":"Wniosek!J133","v":0}]
["naleznosciNazwaDluznika2",{"$f":"Wniosek!C133","v":0}]
["naleznosciAdres2",{"$f":"Wniosek!D133","v":0}]
["naleznosciRodzaj2",{"$f":"Wniosek!F133","v":0}]
["naleznoscTerminZaplaty2",{"$f":"Wniosek!H133","v":0}]
["naleznoscKwota2",{"$f":"Wniosek!#REF!","v":{"$error":"#REF!"}}]
["naleznosciNazwaDluznika3",{"$f":"Wniosek!#REF!","v":{"$error":"#REF!"}}]
["naleznosciAdres3",{"$f":"Wniosek!#REF!","v":{"$error":"#REF!"}}]
["naleznosciRodzaj3",{"$f":"Wniosek!#REF!","v":{"$error":"#REF!"}}]
["naleznoscTerminZaplaty3",{"$f":"Wniosek!#REF!","v":{"$error":"#REF!"}}]
["naleznoscKwota3",{"$f":"Wniosek!#REF!","v":{"$error":"#REF!"}}]
["naleznosciNazwaDluznika4",{"$f":"Wniosek!#REF!","v":{"$error":"#REF!"}}]
["naleznosciAdres4",{"$f":"Wniosek!#REF!","v":{"$error":"#REF!"}}]
["naleznosciRodzaj4",{"$f":"Wniosek!#REF!","v":{"$error":"#REF!"}}]
["naleznoscTerminZaplaty4",{"$f":"Wniosek!#REF!","v":{"$error":"#REF!"}}]
["naleznoscKwota4",{"$f":"Wniosek!#REF!","v":{"$error":"#REF!"}}]
["naleznosciNazwaDluznika5",{"$f":"Wniosek!#REF!","v":{"$error":"#REF!"}}]
["naleznosciAdres5",{"$f":"Wniosek!#REF!","v":{"$error":"#REF!"}}]
["naleznosciRodzaj5",{"$f":"Wniosek!#REF!","v":{"$error":"#REF!"}}]
["naleznoscTerminZaplaty5",{"$f":"Wniosek!#REF!","v":{"$error":"#REF!"}}]
["naleznoscKwota5",{"$f":"Wniosek!#REF!","v":{"$error":"#REF!"}}]
["naleznosciWartoscOgolem",{"$f":"Wniosek!J134","v":0}]
["gotowkaNazwaBanku1",{"$f":"Wniosek!C140","v":0}]
["gotowkaWaluta1",{"$f":"Wniosek!D140","v":0}]
["gotowkaKurs1",{"$f":"Wniosek!E140","v":0}]
["gotowkaOkresDepozytu1",{"$f":"Wniosek!F140","v":0}]
["gotowkaOprocentowanie1",{"$f":"Wniosek!H140","v":0}]
["gotowkaAktualnaWartosc1",{"$f":"Wniosek!J140","v":0}]
["gotowkaNazwaBanku2",{"$f":"Wniosek!#REF!","v":{"$error":"#REF!"}}]
["gotowkaWaluta2",{"$f":"Wniosek!#REF!","v":{"$error":"#REF!"}}]
["gotowkaKurs2",{"$f":"Wniosek!#REF!","v":{"$error":"#REF!"}}]
["gotowkaOkresDepozytu2",{"$f":"Wniosek!#REF!","v":{"$error":"#REF!"}}]
["gotowkaOprocentowanie2",{"$f":"Wniosek!#REF!","v":{"$error":"#REF!"}}]
["gotowkaAktualnaWartosc2",{"$f":"Wniosek!#REF!","v":{"$error":"#REF!"}}]
["gotowkaNazwaBanku3",{"$f":"Wniosek!#REF!","v":{"$error":"#REF!"}}]
["gotowkaWaluta3",{"$f":"Wniosek!#REF!","v":{"$error":"#REF!"}}]
["gotowkaKurs3",{"$f":"Wniosek!#REF!","v":{"$error":"#REF!"}}]
["gotowkaOkresDepozytu3",{"$f":"Wniosek!#REF!","v":{"$error":"#REF!"}}]
["gotowkaOprocentowanie3",{"$f":"Wniosek!#REF!","v":{"$error":"#REF!"}}]
["gotowkaAktualnaWartosc3",{"$f":"Wniosek!#REF!","v":{"$error":"#REF!"}}]
["gotowkaWartoscOgolem",{"$f":"Wniosek!J141","v":0}]
["inneBiezaceAktywaNazwa1",{"$f":"Wniosek!C144","v":0}]
["inneBiezaceAktywaWartosc1",{"$f":"Wniosek!J144","v":0}]
["inneBiezaceAktywaNazwa2",{"$f":"Wniosek!C145","v":0}]
["inneBiezaceAktywaWartosc2",{"$f":"Wniosek!J145","v":0}]
["inneBiezaceAktywaNazwa3",{"$f":"Wniosek!C146","v":0}]
["inneBiezaceAktywaWartosc3",{"$f":"Wniosek!J146","v":0}]
["inneBiezaceAktywaWartoscOgolem",{"$f":"Wniosek!J147","v":0}]
[]
["Opis zobowiązań"]
["pozyczkiKredytodawca1",{"$f":"Wniosek!C152","v":0}]
["pozyczkiRata1",{"$f":"Wniosek!D152","v":0}]
["pozyczkiZadluzenieOd1",{"$f":"Wniosek!F152","v":0}]
["pozyczkiTerminZaplaty1",{"$f":"Wniosek!H152","v":0}]
["pozyczkiAktualneZadluzenie1",{"$f":"Wniosek!J152","v":0}]
["pozyczkiKredytodawca2",{"$f":"Wniosek!C154","v":0}]
["pozyczkiRata2",{"$f":"Wniosek!D154","v":0}]
["pozyczkiZadluzenieOd2",{"$f":"Wniosek!F154","v":0}]
["pozyczkiTerminZaplaty2",{"$f":"Wniosek!H154","v":0}]
["pozyczkiAktualneZadluzenie2",{"$f":"Wniosek!J154","v":0}]
["pozyczkiKredytodawca3",{"$f":"Wniosek!C156","v":0}]
["pozyczkiRata3",{"$f":"Wniosek!D156","v":0}]
["pozyczkiZadluzenieOd3",{"$f":"Wniosek!F156","v":0}]
["pozyczkiTerminZaplaty3",{"$f":"Wniosek!H156","v":0}]
["pozyczkiAktualneZadluzenie3",{"$f":"Wniosek!J156","v":0}]
["pozyczkiWartoscOgolem",{"$f":"Wniosek!J157","v":0}]
["leasingWierzyciel1",{"$f":"Wniosek!C161","v":0}]
["leasingRataMiesieczna1",{"$f":"Wniosek!D161","v":0}]
["leasingZobowiazanieOd1",{"$f":"Wniosek!F161","v":0}]
["leasingTerminZaplaty1",{"$f":"Wniosek!H161","v":0}]
["leasingAktualneZadluzenie1",{"$f":"Wniosek!J161","v":0}]
["leasingWierzyciel2",{"$f":"Wniosek!C162","v":0}]
["leasingRataMiesieczna2",{"$f":"Wniosek!D162","v":0}]
["leasingZobowiazanieOd2",{"$f":"Wniosek!F162","v":0}]
["leasingTerminZaplaty2",{"$f":"Wniosek!H162","v":0}]
["leasingAktualneZadluzenie2",{"$f":"Wniosek!J162","v":0}]
["leasingWierzyciel3",{"$f":"Wniosek!C163","v":0}]
["leasingRataMiesieczna3",{"$f":"Wniosek!D163","v":0}]
["leasingZobowiazanieOd3",{"$f":"Wniosek!F163","v":0}]
["leasingTerminZaplaty3",{"$f":"Wniosek!H163","v":0}]
["leasingAktualneZadluzenie3",{"$f":"Wniosek!J163","v":0}]
["leasingWartoscOgolem",{"$f":"Wniosek!J164","v":0}]
["pozyczkiKrotkoterminoweKredytodawca1",{"$f":"Wniosek!C168","v":0}]
["pozyczkiKrotkoterminoweRata1",{"$f":"Wniosek!D168","v":0}]
["pozyczkiKrotkoterminoweZadluzenieOd1",{"$f":"Wniosek!F168","v":0}]
["pozyczkiKrotkoterminoweTerminZaplaty1",{"$f":"Wniosek!H168","v":0}]
["pozyczkiKrotkoterminoweAktualneZadluzenie1",{"$f":"Wniosek!J168","v":0}]
["pozyczkiKrotkoterminoweKredytodawca2",{"$f":"Wniosek!C171","v":0}]
["pozyczkiKrotkoterminoweRata2",{"$f":"Wniosek!D171","v":0}]
["pozyczkiKrotkoterminoweZadluzenieOd2",{"$f":"Wniosek!F171","v":0}]
["pozyczkiKrotkoterminoweTerminZaplaty2",{"$f":"Wniosek!H171","v":0}]
["pozyczkiKrotkoterminoweAktualneZadluzenie2",{"$f":"Wniosek!J171","v":0}]
["pozyczkiKrotkoterminoweKredytodawca3",{"$f":"Wniosek!C172","v":0}]
["pozyczkiKrotkoterminoweRata3",{"$f":"Wniosek!D172","v":0}]
["pozyczkiKrotkoterminoweZadluzenieOd3",{"$f":"Wniosek!F172","v":0}]
["pozyczkiKrotkoterminoweTerminZaplaty3",{"$f":"Wniosek!H172","v":0}]
["pozyczkiKrotkoterminoweAktualneZadluzenie3",{"$f":"Wniosek!J172","v":0}]
["pozyczkiKrotkoterminoweWartoscOgolem",{"$f":"Wniosek!J173","v":0}]
["zobowiazanieDoDostawcyNazwa1",{"$f":"Wniosek!C181","v":0}]
["zobowiazanieDoDostawcyAdres1",{"$f":"Wniosek!D181","v":0}]
["zobowiazanieDoDostawcyOdDnia1",{"$f":"Wniosek!F181","v":0}]
["zobowiazanieDoDostawcyTerminZapalty1",{"$f":"Wniosek!H181","v":0}]
["zobowiazanieDoDostawcyKwota1",{"$f":"Wniosek!J181","v":0}]
["zobowiazanieDoDostawcyNazwa2",{"$f":"Wniosek!#REF!","v":{"$error":"#REF!"}}]
["zobowiazanieDoDostawcyAdres2",{"$f":"Wniosek!#REF!","v":{"$error":"#REF!"}}]
["zobowiazanieDoDostawcyOdDnia2",{"$f":"Wniosek!#REF!","v":{"$error":"#REF!"}}]
["zobowiazanieDoDostawcyTerminZapalty2",{"$f":"Wniosek!#REF!","v":{"$error":"#REF!"}}]
["zobowiazanieDoDostawcyKwota2",{"$f":"Wniosek!#REF!","v":{"$error":"#REF!"}}]
["zobowiazanieDoDostawcyNazwa3",{"$f":"Wniosek!#REF!","v":{"$error":"#REF!"}}]
["zobowiazanieDoDostawcyAdres3",{"$f":"Wniosek!#REF!","v":{"$error":"#REF!"}}]
["zobowiazanieDoDostawcyOdDnia3",{"$f":"Wniosek!#REF!","v":{"$error":"#REF!"}}]
["zobowiazanieDoDostawcyTerminZapalty3",{"$f":"Wniosek!#REF!","v":{"$error":"#REF!"}}]
["zobowiazanieDoDostawcyKwota3",{"$f":"Wniosek!#REF!","v":{"$error":"#REF!"}}]
["zobowiazanieDoDostawcyNazwa4",{"$f":"Wniosek!#REF!","v":{"$error":"#REF!"}}]
["zobowiazanieDoDostawcyAdres4",{"$f":"Wniosek!#REF!","v":{"$error":"#REF!"}}]
["zobowiazanieDoDostawcyOdDnia4",{"$f":"Wniosek!#REF!","v":{"$error":"#REF!"}}]
["zobowiazanieDoDostawcyTerminZapalty4",{"$f":"Wniosek!#REF!","v":{"$error":"#REF!"}}]
["zobowiazanieDoDostawcyKwota4",{"$f":"Wniosek!#REF!","v":{"$error":"#REF!"}}]
["zobowiazanieDoDostawcyWartoscOgolem",{"$f":"Wniosek!J182","v":0}]
["zobowiazanieDoBudzetuNazwa1",{"$f":"Wniosek!C190","v":0}]
["zobowiazanieDoBudzetuAdres1",{"$f":"Wniosek!D190","v":0}]
["zobowiazanieDoBudzetuOdDnia1",{"$f":"Wniosek!F190","v":0}]
["zobowiazanieDoBudzetuTerminZaplaty1",{"$f":"Wniosek!H190","v":0}]
["zobowiazanieDoBudzetuKwota1",{"$f":"Wniosek!J190","v":0}]
["zobowiazanieDoBudzetuNazwa2",{"$f":"Wniosek!#REF!","v":{"$error":"#REF!"}}]
["zobowiazanieDoBudzetuAdres2",{"$f":"Wniosek!#REF!","v":{"$error":"#REF!"}}]
["zobowiazanieDoBudzetuOdDnia2",{"$f":"Wniosek!#REF!","v":{"$error":"#REF!"}}]
["zobowiazanieDoBudzetuTerminZaplaty2",{"$f":"Wniosek!#REF!","v":{"$error":"#REF!"}}]
["zobowiazanieDoBudzetuKwota2",{"$f":"Wniosek!#REF!","v":{"$error":"#REF!"}}]
["zobowiazanieDoBudzetuNazwa3",{"$f":"Wniosek!#REF!","v":{"$error":"#REF!"}}]
["zobowiazanieDoBudzetuAdres3",{"$f":"Wniosek!#REF!","v":{"$error":"#REF!"}}]
["zobowiazanieDoBudzetuOdDnia3",{"$f":"Wniosek!#REF!","v":{"$error":"#REF!"}}]
["zobowiazanieDoBudzetuTerminZaplaty3",{"$f":"Wniosek!#REF!","v":{"$error":"#REF!"}}]
["zobowiazanieDoBudzetuKwota3",{"$f":"Wniosek!#REF!","v":{"$error":"#REF!"}}]
["zobowiazanieDoBudzetuWartoscOgolem",{"$f":"Wniosek!J191","v":0}]
["zobowiazaniaKrotkoterminoweNazwa1",{"$f":"Wniosek!C195","v":0}]
["zobowiazaniaKrotkoterminoweAdres1",{"$f":"Wniosek!D195","v":0}]
["zobowiazaniaKrotkoterminoweOdDnia",{"$f":"Wniosek!F195","v":0}]
["zobowiazaniaKrotkoterminoweTerminZaplaty1",{"$f":"Wniosek!H195","v":0}]
["zobowiazaniaKrotkoterminoweKwota1",{"$f":"Wniosek!J195","v":0}]
["zobowiazaniaKrotkoterminoweNazwa2",{"$f":"Wniosek!C196","v":0}]
["zobowiazaniaKrotkoterminoweAdres2",{"$f":"Wniosek!D196","v":0}]
["zobowiazaniaKrotkoterminoweOdDnia",{"$f":"Wniosek!F196","v":0}]
["zobowiazaniaKrotkoterminoweTerminZaplaty2",{"$f":"Wniosek!H196","v":0}]
["zobowiazaniaKrotkoterminoweKwota2",{"$f":"Wniosek!J196","v":0}]
["zobowiazaniaKrotkoterminoweWartoscOgolem",{"$f":"Wniosek!J198","v":0}]
[]
["Proponowane zabezpieczenia pozyczki"]
["poreczenieNazwisko1",{"$f":"Wniosek!C202","v":0}]
["poreczenieAdres1",{"$f":"Wniosek!D202","v":0}]
["poreczenieDochod1",{"$f":"Wniosek!H202","v":0}]
["poreczenieNazwisko2",{"$f":"Wniosek!#REF!","v":{"$error":"#REF!"}}]
["poreczenieAdres2",{"$f":"Wniosek!#REF!","v":{"$error":"#REF!"}}]
["poreczenieDochod2",{"$f":"Wniosek!#REF!","v":{"$error":"#REF!"}}]
["poreczenieNazwisko3",{"$f":"Wniosek!#REF!","v":{"$error":"#REF!"}}]
["poreczenieAdres3",{"$f":"Wniosek!#REF!","v":{"$error":"#REF!"}}]
["poreczenieDochod3",{"$f":"Wniosek!#REF!","v":{"$error":"#REF!"}}]
["poreczenieWeksel",{"$f":"Wniosek!D207","v":0}]
["poreczenieInneZabezpieczenia",{"$f":"Wniosek!#REF!","v":{"$error":"#REF!"}}]
[]
[]
["Poprawki styczeń 2014"]
["adresKorespondencyjnyUlica",{"$f":"Wniosek!F42","v":0}]
["adresKorespondencyjnyNrDomu",{"$f":"Wniosek!H42","v":0}]
["numerNIPfirmy",{"$f":"Wniosek!#REF!","v":{"$error":"#REF!"}}]
["miejsceInwestycjiGmina",{"$f":"Wniosek!H11","v":0}]
["Poprawki marzec 2014"]
["calkowityKosztPrzedsiewziecia",{"$f":"Wniosek!D54","v":0}]
["wkladWlasny",{"$f":"Wniosek!I54","v":0}]
["formaWkladuWlasnego","gotowka"]
["krotkiOpisFormyWkladuWlasnego",{"$f":"Wniosek!I55","v":0}]
["nrKontaPozyczkobiorcyDoZwortuNadplaty",{"$f":"Wniosek!E59","v":0}]
["Poprawki wrzesień 2014"]
["nrRachunkuBankowego",{"$f":"Wniosek!#REF!","v":{"$error":"#REF!"}}]
["nazwaBanku",{"$f":"Wniosek!#REF!","v":{"$error":"#REF!"}}]
["nrRachunkuBankowegoProwadzonegoPodNazwa",{"$f":"Wniosek!#REF!","v":{"$error":"#REF!"}}]
[]
[]
["dowód osobisty pożyczkobiorcy 1 - ważny do",{"$f":"Wniosek!J38","v":"00:00:00"}]
["dowód osobisty pożyczkobiorcy 2 - ważny do","nie dotyczy (jest w sop, nie ma w tym szablonie)"]

{"sheet":"JER-ZACH-u","index":4,"n_rows":34,"n_cols":1,"rows_kept":34,"cut":false,"hidden":true,"merged":[]}
[]
[]
["Czy Wnioskodawca pozostaje pod zarządem komisarycznym, znajduje się w toku likwidacji, postępowania upadłościowego lub postępowania naprawczego/układowego      "]
["                                                                                                                                                                                                                                    TAK / NIE      "]
["Czy na Wnioskodawcy ciąży obowiązek zwrotu pomocy, wynikający z decyzji Komisji Europejskiej uznającej pomoc za niezgodną z prawem oraz ze wspólnym rynkiem     "]
["                                                                                                                                                                            TAK / NIE"]
["Czy Wnioskodawca jest przedsiębiorcą znajdującym się w trudnej sytuacji w rozumieniu pkt 20 Wytycznych dotyczących pomocy państwa na ratowanie i restrukturyzację przedsiębiorstw niefinansowych znajdujących się w trudnej sytuacji / Dz.Urz. UE C 249 z 31.07.2014 r./                                                                                                                                                                                                                                              "]
["                                                                                                                                                                            TAK / NIE                                   "]
["W przypadku Wnioskodawcy / ów będącego/ ych będącego/ych osobą/ami  fizyczną/ymi:"]
[]
["Czy przedsiębiorca został prawomocnie skazany / Czy przedsiębiorcy zostali prawomocnie skazani za przestępstwo składania fałszywych zeznań, przekupstwa, przeciwko mieniu, wiarygodności dokumentów, obrotowi pieniężnemu i papierami wartościowymi, obrotowi gospodarczemu, systemowi gospodarczemu, systemowi bankowemu, przestępstwo skarbowe albo inne związane z wykonywaniem działalności gospodarczej lub popełnione w celu osiągnięcia korzyści majątkowych"]
["                                                                                                                                                                            TAK / NIE"]
["W przypadku przedsiębiorcy niebędącego osobą fizyczną:"]
[]
["Czy którykolwiek z członków organów zarządzających bądź wspólników został prawomocnie skazany za przestępstwa składania fałszywych zeznań, przekupstwa, przeciwko mieniu, wiarygodności dokumentów, obrotowi pieniężnemu i papierami wartościowymi, obrotowi gospodarczemu, systemowi bankowemu, przestępstwo skarbowe albo inne związane z wykonywaniem działalności gospodarczej lub popełnione w celu osiągnięcia korzyści majątkowych   "]
["                                                                                                                                                                             TAK / NIE        "]
["Oświadczam, że jestem/my mikro przedsiębiorstwem w rozumieniu przepisów Załącznika nr I do Rozporządzenia Komisji (WE) 800/2008 z dnia 6 sierpnia 2008 roku (Dz.Urz.UE L 214 z 9.8.2008 r.)"]
[]
["Oświadczan, że w przedmiocie objętym finansowaniem wnioskowaną pożyczką nie nastąpi współfinansowanie wydatków z innych funduszy UE, bądź wydatków wspołfinansowanych z innego instrumentu finansowego UE, Funduszy Strukturalnych, programów, środków i instrumentow Unii Europejskiej, a także innych źródeł pomocy krajowej i zagranicznej."]
["Oświadczam, że wyrażam zgodę na zbieranie i przetwarzanie moich/naszych danych osobowych oraz danych objętych tajemnicą bankową przez administratora: Fundację na rzecz Rozwoju Polskiego Rolnictwa z siedzibą w Warszawie ul. Gombrowicza 19 oraz Bank Gospodarstwa Krajowego ( Menedżera Funduszu Powierniczego), Instytucję Zarządzającą, a także Polską Agencję Rozwoju  Przedsiębiorczości lub inne wskazane przez powyższe podmioty osoby w celu prawidłowego przeprowadzenia procedury pożyczkowej, budowania baz danych, wykonywania oraz zamawiania przez powyższe podmioty analiz w zakresie spójności RPO WM, realizacji polityk, w tym polityk horyzontalnych, oceny skutków RPO WZ , a także oddziaływań makroekonomicznych, monitoringu ,realizacji umowy pożyczki oraz na przeprowadzanie wizyt w przedsiębiorstwie i badań ankietowych, w związku z korzystaniem z usług świadczonych przez powyższe podmioty,  w rozumieniu ustawy z dnia 29 sierpnia 1997 roku o ochronie danych osobowych (Dz.U. 2014 r. poz. 1182 j.t. z późn. zm. )"]
["Zgoda wyrażona w niniejszym oświadczeniu obejmuje również przetwarzanie moich danych w przyszłości pod warunkiem, że cel przetworzenia nie zostanie zmieniony."]
["Zostałem poinformowany o nazwie i siedzibie administratora danych, celach, w jakich dane te są przetwarzane, prawie wglądu do nich i ich poprawiania."]
[]
["Oświadczam, że wyrażam zgodę na zbieranie i przetwarzanie moich/naszych danych osobowych oraz danych objętych tajemnicą bankową przez administratora: Fundację na rzecz Rozwoju Polskiego Rolnictwa z siedzibą w Warszawie ul. Gombrowicza 19  w celach promocyjnych i marketingowych w rozumieniu ustawy z dnia 29 sierpnia 1997 roku o ochronie danych osobowych (Dz.U. 2014 r. poz.1182 j.t. z późn. zm. )"]
["Zgoda wyrażona w niniejszym oświadczeniu obejmuje również przetwarzanie moich/naszych danych w przyszłości pod warunkiem, że cel przetworzenia nie zostanie zmieniony."]
["Zostałem poinformowany o nazwie i siedzibie administratora danych, celach, w jakich dane te są przetwarzane, prawie wglądu do nich i ich poprawiania. "]
["TAK / NIE        "]
[]
[]
["____________________________                                                                                                                             ________________________          "]
["            Miejscowość/ data                                                                                                                                           Czytelny podpis Wnioskodawcy                        "]
[]
["____________________________                                                                                                                             ________________________          "]
["              Miejscowość/data                                                                                                                                          Czytelny podpis Wnioskodawcy "]

{"sheet":"JER-MAZ-u","index":5,"n_rows":33,"n_cols":1,"rows_kept":33,"cut":false,"hidden":true,"merged":[]}
[]
[]
["Czy Wnioskodawca pozostaje pod zarządem komisarycznym, znajduje się w toku likwidacji, postępowania upadłościowego lub postępowania naprawczego/układowego      "]
["                                                                                                                                                                                                                                    TAK / NIE      "]
["Czy na Wnioskodawcy ciąży obowiązek zwrotu pomocy, wynikający z decyzji Komisji Europejskiej uznającej pomoc za niezgodną z prawem oraz ze wspólnym rynkiem     "]
["                                                                                                                                                                            TAK / NIE"]
["Czy Wnioskodawca jest przedsiębiorcą znajdującym się w trudnej sytuacji w rozumieniu pkt 20 Wytycznych dotyczących pomocy państwa na ratowanie i restrukturyzację przedsiębiorstw niefinansowych znajdujących się w trudnej sytuacji / Dz.Urz. UE C 249 z 31.07.2014 r./                                                                                                                                                                                                                                              "]
["                                                                                                                                                                            TAK / NIE                                   "]
["W przypadku Wnioskodawcy / ów będącego/ ych będącego/ych osobą/ami  fizyczną/ymi:"]
[]
["Czy przedsiębiorca został prawomocnie skazany / Czy przedsiębiorcy zostali prawomocnie skazani za przestępstwo składania fałszywych zeznań, przekupstwa, przeciwko mieniu, wiarygodności dokumentów, obrotowi pieniężnemu i papierami wartościowymi, obrotowi gospodarczemu, systemowi gospodarczemu, systemowi bankowemu, przestępstwo skarbowe albo inne związane z wykonywaniem działalności gospodarczej lub popełnione w celu osiągnięcia korzyści majątkowych"]
["                                                                                                                                                                            TAK / NIE"]
["W przypadku przedsiębiorcy niebędącego osobą fizyczną:"]
[]
["Czy którykolwiek z członków organów zarządzających bądź wspólników został prawomocnie skazany za przestępstwa składania fałszywych zeznań, przekupstwa, przeciwko mieniu, wiarygodności dokumentów, obrotowi pieniężnemu i papierami wartościowymi, obrotowi gospodarczemu, systemowi bankowemu, przestępstwo skarbowe albo inne związane z wykonywaniem działalności gospodarczej lub popełnione w celu osiągnięcia korzyści majątkowych   "]
["                                                                                                                                                                             TAK / NIE        "]
["Oświadczam, że jestem/my mikro przedsiębiorstwem w rozumieniu przepisów Załącznika nr I do Rozporządzenia Komisji (WE) 800/2008 z dnia 6 sierpnia 2008 roku (Dz.Urz.UE L 214 z 9.8.2008 r.)"]
[]
["Oświadczan, że w przedmiocie objętym finansowaniem wnioskowaną pożyczką nie nastąpi współfinansowanie wydatków z innych funduszy UE, bądź wydatków wspołfinansowanych z innego instrumentu finansowego UE, Funduszy Strukturalnych, programów, środków i instrumentow Unii Europejskiej, a także innych źródeł pomocy krajowej i zagranicznej."]
["Oświadczam, że wyrażam zgodę na zbieranie i przetwarzanie moich/naszych danych osobowych oraz danych objętych tajemnicą bankową przez administratora: Fundację na rzecz Rozwoju Polskiego Rolnictwa z siedzibą w Warszawie ul. Gombrowicza 19 oraz Bank Gospodarstwa Krajowego ( Menedżera Funduszu Powierniczego), Instytucję Zarządzającą, a także Polską Agencję Rozwoju  Przedsiębiorczości lub inne wskazane przez powyższe podmioty osoby w celu prawidłowego przeprowadzenia procedury pożyczkowej, budowania baz danych, wykonywania oraz zamawiania przez powyższe podmioty analiz w zakresie spójności RPO WM, realizacji polityk, w tym polityk horyzontalnych, oceny skutków RPO WM , a także oddziaływań makroekonomicznych, monitoringu ,realizacji umowy pożyczki oraz na przeprowadzanie wizyt w przedsiębiorstwie i badań ankietowych, w związku z korzystaniem z usług świadczonych przez powyższe podmioty,  w rozumieniu ustawy z dnia 29 sierpnia 1997 roku o ochronie danych osobowych (Dz.U. 2014 r. poz. 1182 j.t. z późn. zm.)"]
["Zgoda wyrażona w niniejszym oświadczeniu obejmuje również przetwarzanie moich danych w przyszłości pod warunkiem, że cel przetworzenia nie zostanie zmieniony."]
["Zostałem poinformowany o nazwie i siedzibie administratora danych, celach, w jakich dane te są przetwarzane, prawie wglądu do nich i ich poprawiania."]
["Oświadczam, że wyrażam zgodę na zbieranie i przetwarzanie moich/naszych danych osobowych oraz danych objętych tajemnicą bankową przez administratora: Fundację na rzecz Rozwoju Polskiego Rolnictwa z siedzibą w Warszawie ul. Gombrowicza 19  w celach promocyjnych i marketingowych w rozumieniu ustawy z dnia 29 sierpnia 1997 roku o ochronie danych osobowych (Dz.U. 2014 r. poz.1182 j.t. z późn. zm.)"]
["Zgoda wyrażona w niniejszym oświadczeniu obejmuje również przetwarzanie moich/naszych danych w przyszłości pod warunkiem, że cel przetworzenia nie zostanie zmieniony."]
["Zostałem poinformowany o nazwie i siedzibie administratora danych, celach, w jakich dane te są przetwarzane, prawie wglądu do nich i ich poprawiania. "]
["TAK / NIE        "]
[]
[]
["____________________________                                                                                                                             ________________________          "]
["            Miejscowość/ data                                                                                                                                           Czytelny podpis Wnioskodawcy                        "]
[]
["____________________________                                                                                                                             ________________________          "]
["              Miejscowość/data                                                                                                                                          Czytelny podpis Wnioskodawcy "]

{"sheet":"rodzaj dział. wg PKD","index":6,"n_rows":40,"n_cols":4,"rows_kept":40,"cut":false,"hidden":true,"merged":[]}
[]
[]
[]
[]
["Rolnictwo (01)",null,"r","rolnictwo"]
["Działalność usługowa wspomagająca rolnictwo (01.6)",null,"u","usługi"]
["leśnictwo, rybołówstwo (02,03)",null,"p","produkcja"]
["działalność usługowa związana z leśnictwem ( 02.4)",null,"u","usługi"]
["Górnictwo i wydobywanie (05-08)",null,"p","produkcja"]
["Działalność usługowa wspomagająca górnictwo i wydobywanie 09",null,"u","usługi"]
["Przetwórstwo przemysłowe - produkcja art.spoż., napojów, wyr, tyt. (10-32)",null,"p","produkcja"]
["naprawa i konserwacja i instalowanie maszyn i urządzeń (33)",null,"u","usługi"]
["wytwarzanie i zaopatrywanie w energię elektryczną, gaz, parę wodną, gorącą wodę i powietrze do ukł. Klimatyzacyjnych (35)",null,"u","usługi"]
["wytwarzanie energii elektrycznej ( 35.11)",null,"p","produkcja"]
["przesyłanie energii elektrycznej, dystrybucja (35.12, 35.13)",null,"u","usługi"]
["handel energią elektryczną ( 35.14)",null,"h","handel"]
["wytwarzanie paliw gazowych (35.21)",null,"p","produkcja"]
["dystrybucja paliw gazowych (35.22)",null,"u","usługi"]
["handel paliwami gazowymi (35.23)",null,"h","handel"]
["Dostawa wody, gospodarowanie ściekami i odpadami oraz dzaił. zwią. z rekultywacją (36-39)",null,"u","usługi"]
["Budownictwo (41-43)",null,"b","budownictwo"]
["handel hurtowy i detaliczny;naprawa pojazdów sam. z wył. mot. (45-47)",null,"h","handel"]
["konserwacja i naprawa pojazdów samochod. (45.2)",null,"u","usługi"]
["Transport (49-51)",null,"t","transport"]
["Magazynowanie i dział. usł. Wspomagająca transport, dział. pocztowa i kurierska ( 52,53)",null,"u","usługi"]
["Hotele i restauracje (55,56)",null,"u","usługi"]
["Informacja i komunikacja (58-63)",null,"u","usługi"]
["Poczta i telekomunikacja (61)",null,"u","usługi"]
["działalność finasowa i ubezpieczeniowa (64-66)",null,"u","usługi"]
["działalność związana z obsługą rynku nieruchomościami (68)",null,"u","usługi"]
["kupno i sprzedaż nieruch. Na własny rach. (68.1)",null,"h","handel"]
["Działalność proesjonalna, naukowa i techniczna (69-75)",null,"u","usługi"]
["Działalność w zakresie usług adm. I dział. wspierająca (77-82)",null,"u","usługi"]
["Administracja publiczna i obrona narodowa, obowiązkowe zabezpieczenia społeczne(84)",null,"u","usługi"]
["Edukacja (85)",null,"u","usługi"]
["Opieka zdrowotna i pomoc społeczna (86-88)",null,"u","usługi"]
["Działalność związana z kulturą, rozrywką i rekreacją (90-93)",null,"u","usługi"]
["pozostała dziłałalność usługowa (94-96)",null,"u","usługi"]
["Gospodarstwo domowe zatrudniające pracowników, produkujące wyroby i świadczące usł. Na własne potrzeby ( 97,98)",null,"u","usługi"]
["Organizacje i zespoły eksterytorialne (99)",null,"u","usługi"]

{"sheet":"MSP","index":7,"n_rows":26,"n_cols":7,"rows_kept":26,"cut":false,"hidden":true,"merged":[]}
[null,"liczba zatrudnionych",null,"Osiągnięty roczny obrót netto ze sprzedaży towarów, wyrobów usług i operacji finansowych  (Euro)",null,"Suma aktywów bilansu sporządzonego na koniec roku (EURO)"]
[null,"od","do","od","do","od","do"]
["mikro",0,9,0,2000000,0,2000000]
["mały",10,49,2000001,50000000,2000001,50000000]
["średni",50,null,50000001,null,50000001]
[]
[]
[]
[null,"rok 1","rok 2","rok 3"]
["mikro",9,9,10]
["mały ",9,10,10]
["średni",50,50,49]
[]
[]
[]
[]
[]
[]
[]
[]
[]
[]
["Jeżeli w dniu zamknięcia ksiąg rachunkowych dane przedsiębiorstwo stwierdza, że w skali rocznej przekroczyło"]
["pułapy zatrudnienia lub pułapy finansowe określone w art. 2, lub spadło poniżej tych pułapów, uzyskanie lub utrata"]
["statusu średniego, małego lub mikroprzedsiębiorstwa następuje tylko wówczas, gdy zjawisko to powtórzy się w ciągu"]
["dwóch kolejnych okresów obrachunkowych."]

{"sheet":"ArkuszSłownie","index":8,"n_rows":29,"n_cols":6,"rows_kept":29,"cut":false,"hidden":true,"merged":[[1,4,8,7]]}
[{"$f":"Wniosek!D8","v":0}," <= musi być mniejsza lub równa 999 999 999 999,99 oraz nieujemna"]
["Aby skorzystać z arkusza dołącz go do swego zeszytu.",null,null,null,"Mimo dołożenie wszelkiej staranności, autor nie bierze odpowiedzialności za funkcjonowanie algorytmu. Użytkownik korzysta z niego na własną odpowiedzialność i ryzyko."]
["Do komórki A1 tego arkusza (powyżej) wpisz formułę"]
["przekazującą liczbę. Np. =Arkusz1!B24"]
["Wynik znajduje się w komórce A10 (poniżej), więc w swoim"]
["arkuszu wpisz formułę np. =ArkuszSłownie!A10"]
["Autorem procedury jest Jerzy Moruś"]
["http://yestok.pl"]
["Dołączanie arkusza opisano na stronie serwisu"]
[{"$f":"IF(A29,B29,(IF(A1=0,\"zero \",\"\")&F28&F27&E28&E27&D28&D27&C28&B26))","v":"zero i 00/100"}]
[{"$f":"T(1)","v":""},{"$f":"T(1)","v":""},{"$f":"T(1)","v":""},{"$f":"T(1)","v":""}]
["jeden ","jedenaście ","dziesięć ","sto "]
["dwa ","dwanaście ","dwadzieścia ","dwieście "]
["trzy ","trzynaście ","trzydzieści ","trzysta "]
["cztery ","czternaście ","czterdzieści ","czterysta "]
["pięć ","piętnaście ","pięćdziesiąt ","pięćset "]
["sześć ","szesnaście ","sześćdziesiąt ","sześćset "]
["siedem ","siedemnaście ","siedemdziesiąt ","siedemset "]
["osiem ","osiemnaście ","osiemdziesiąt ","osiemset "]
["dziewięć ","dziewiętnaście ","dziewięćdziesiąt ","dziewięćset "]
[{"$f":"T(1)","v":""},{"$f":"T(1)","v":""},{"$f":"T(1)","v":""}]
["tysiąc ","milion ","miliard "]
["tysiące ","miliony ","miliardy "]
["tysięcy ","milionów ","miliardów "]
["GINT","GRES","GJED","GTYS","GMLN","GMLD"]
[{"$f":"TEXT(A1,\"000000000000,00\")","v":"000000000000,00"},{"$f":"\"i \"&RIGHT(A26,2)&\"/100\"","v":"i 00/100"},{"$f":"VALUE(MID($A$26,10,3))","v":0},{"$f":"VALUE(MID($A$26,7,3))","v":0},{"$f":"VALUE(MID($A$26,4,3))","v":0},{"$f":"VALUE(LEFT($A$26,3))","v":0}]
[null,null,null,{"$f":"INDEX($A$21:$C$24,4-2*(D26=1)-3*(D26=0)-AND(NOT(AND(MOD(D26,100)>10,MOD(D26,100)<20)),MOD(D26,10)>1,MOD(D26,10)<5),1)","v":""},{"$f":"INDEX($A$21:$C$24,4-2*(E26=1)-3*(E26=0)-AND(NOT(AND(MOD(E26,100)>10,MOD(E26,100)<20)),MOD(E26,10)>1,MOD(E26,10)<5),2)","v":""},{"$f":"INDEX($A$21:$C$24,4-2*(F26=1)-3*(F26=0)-AND(NOT(AND(MOD(F26,100)>10,MOD(F26,100)<20)),MOD(F26,10)>1,MOD(F26,10)<5),3)","v":""}]
[null,null,{"$f":"INDEX($A$11:$D$20,TRUNC(C26/100)+1,4)&INDEX($A$11:$D$20,1+AND(MOD(C26,100)>=10,MOD(C26,100)<20)*MOD(C26,10),2)&INDEX($A$11:$D$20,OR((MOD(C26,100)=10),MOD(C26,100)>19)*TRUNC(MOD(C26,100)/10)+1,3)&INDEX($A$11:$D$20,1+OR((MOD(C26,100)<10),MOD(C26,100)>19)*MOD(C26,10),1)","v":""},{"$f":"INDEX($A$11:$D$20,TRUNC(D26/100)+1,4)&INDEX($A$11:$D$20,1+AND(MOD(D26,100)>=10,MOD(D26,100)<20)*MOD(D26,10),2)&INDEX($A$11:$D$20,OR((MOD(D26,100)=10),MOD(D26,100)>19)*TRUNC(MOD(D26,100)/10)+1,3)&INDEX($A$11:$D$20,1+OR((MOD(D26,100)<10),MOD(D26,100)>19)*MOD(D26,10),1)","v":""},{"$f":"INDEX($A$11:$D$20,TRUNC(E26/100)+1,4)&INDEX($A$11:$D$20,1+AND(MOD(E26,100)>=10,MOD(E26,100)<20)*MOD(E26,10),2)&INDEX($A$11:$D$20,OR((MOD(E26,100)=10),MOD(E26,100)>19)*TRUNC(MOD(E26,100)/10)+1,3)&INDEX($A$11:$D$20,1+OR((MOD(E26,100)<10),MOD(E26,100)>19)*MOD(E26,10),1)","v":""},{"$f":"INDEX($A$11:$D$20,TRUNC(F26/100)+1,4)&INDEX($A$11:$D$20,1+AND(MOD(F26,100)>=10,MOD(F26,100)<20)*MOD(F26,10),2)&INDEX($A$11:$D$20,OR((MOD(F26,100)=10),MOD(F26,100)>19)*TRUNC(MOD(F26,100)/10)+1,3)&INDEX($A$11:$D$20,1+OR((MOD(F26,100)<10),MOD(F26,100)>19)*MOD(F26,10),1)","v":""}]
[{"$f":"IF(ISTEXT($A$1),TRUE,OR(SIGN($A$1)=-1,LEN($A$26)>15))","v":false},"Liczba jest ujemna, albo za duża, albo nie jest to liczba!"]

{"sheet":"Obrazki","index":9,"n_rows":0,"n_cols":0,"rows_kept":0,"cut":false,"hidden":true,"merged":[[6,1,6,7],[5,1,5,7],[0,1,0,7],[1,1,1,7],[2,1,2,7],[3,1,3,7],[4,1,4,7]]}